Workbook

Sheet Slide Descriptions
A1: Q4_14
A3: Updates | B3: Slide Order | C3: DESCRIPTION | D3: TITLE
A4: quarterly | B4: 1 | C4: presentation title page | D4: California's Child Welfare Performance Indicators Project: Q2_13 Slides
A5: n/a | B5: 2 | C5: placement system | D5: The Current Placement System (highly simplified)
A6: n/a | B6: 3 | C6: outcome wheel | D6: Tracking Child Welfare Outcomes
A7: n/a | B7: 4 | C7: view example | D7: The View Matters…How Long do Children Stay in Foster Care?
A8: quarterly | B8: 5 | C8: entry, pit and exit data by age | D8: California Example: Age of Children in Foster Care (2012 entries, July 1, 2012 caseload, 2012 exits)
A9: quarterly | B9: 6 | C9: allegation, substantiation, and entry rates over time | D9: California: Allegation, Substantiation, and Entry Rates (per 1,000)
A10: n/a | B10: 7 | C10: problem with summary statistics | D10: The Problem with Summary Statistics
A11: quarterly | B11: 8 | C11: all entries over time, by placement type | D11: California: Entries To Foster Care Over Time, by placement type
A12: quarterly | B12: 9 | C12: foster care caseload over time, by placement type | D12: California: Out-of-Home Caseload Over Time, by placement type
A13: quarterly | B13: 10 | C13: exits over time, by placement type | D13: California: Exits From Foster Care Over Time, by placement type
A14: quarterly | B14: 11 | C14: entries, exits, and caseload over time | D14: California: Entries, Exits, and Out-of-Home Caseload Over Time
A15: quarterly | B15: 12 | C15: stacked bar by point of contact, population, allegation, substantiation, entries, in care, exits | D15: California: Ethnicity and Path Through the Child Welfare System (missing values and other race excluded from % calculations)
A16: n/a | B16: 13 | C16: definitions of disproportionality and disparity | D16: Definitions
A17: quarterly | B17: 14 | C17: disparity index calculation example 1 | D17: California: Disparity Index, Entry Disparity
A18: quarterly | B18: 15 | C18: disparity index calculation example 2 | D18: California: Disparity Index, Exit Disparity
A19: quarterly | B19: 16 | C19: 3d rates of allegations by age and ethnicity | D19: California: Allegations per 1,000, by age and ethnicity
A20: quarterly | B20: 17 | C20: 3d rates of substantiations by age and ethnicity | D20: California: Substantiations per 1,000, by age and ethnicity
A21: quarterly | B21: 18 | C21: 3d rates of entries to care by age and ethnicity | D21: California: Entries to Care per 1,000, by age and ethnicity
A22: quarterly | B22: 19 | C22: 3d rates of children in care by age and ethnicity | D22: California: Children in Care per 1,000, by age and ethnicity
A23: quarterly | B23: 20 | C23: 3d slides for all points of contact, organized by race, common scale | D23: California: Allegation, Substantiation, Entry, and In Care Rates per 1,000
A24: n/a | B24: 21 | C24: population data information | D24: Updates to Population Data
A25: quarterly | B25: 22 | C25: Allegation rates over time by race/ethnicity | D25: California: Allegation Rates Over Time (per 1,000) by race/ethnicity
A26: quarterly | B26: 23 | C26: Substantiation Rates over time by race/ethnicity | D26: California: Substantiation Rates Over Time (per 1,000) by race/ethnicity
A27: quarterly | B27: 24 | C27: Entry Rates over time by Race/ethnicity | D27: California: Entry Rates Over Time (per 1,000) by race/ethnicity
A28: quarterly | B28: 25 | C28: In Care Rates over time by race/ethnicity | D28: California: In Care Rates Over Time (per 1,000) by race/ethnicity
A29: n/a | B29: 26 | C29: poverty data information | D29: Poverty Data
A30: quarterly | B30: 27 | C30: logged racial disparity by point of contact compared with white (general) | D30: California: General Population Racial Disparity Indices (group compared to White)
A31: quarterly | B31: 28 | C31: logged racial disparity by point of contact compared with white (poverty) | D31: California: Poverty Population Racial Disparity Indices (group compared to White)
A32: quarterly | B32: 29 | C32: first entry cohort slide, 48 months from entry | D32: California: Percent Exited to Permanency 48 Months From Entry
A33: quarterly | B33: 30 | C33: first entry cohort slide, 48 months from entry, by race | D33: California: Percent Exited to Permanency 48 Months From Entry, by race
A34: quarterly | B34: 31 | C34: first entry cohort slide, 48 months from entry, by race and placement type | D34: California: Percent Exited to Permanency 48 Months From Entry, by race and placement type
A35: quarterly | B35: 32 | C35: caseload service components by race | D35: California: Caseload Case Service Components by Race/Ethnicity (missing values and other race excluded from % calculations, children of all ages included)
A36: quarterly | B36: 33 | C36: caseload services components over time | D36: California: Caseload Case Service Components Over Time
A37: quarterly | B37: 34 | C37: kin vs. non-kin placement distances from home over time | D37: California: Children Still in Care 12m After Entry, Placement Distance from Home by Kin vs. Non-Kin (missing values excluded from % calculations)
A38: quarterly | B38: 35 | C38: children placed with some, or all, siblings | D38: California: Out-of-Home Caseload, Children Placed with Siblings (includes only those children who have siblings in care)
A39: quarterly | B39: 36 | C39: recurrence of allegations by base (and follow-up) disposition type | D39: California: Recurrence of Allegations Over 24 Months, by disposition type
A40: quarterly | B40: 37 | C40: first entry cohort view of exits to permanency over time | D40: California: Percent Exiting to Permanency Over Time: First Entry Cohorts, 8+ Days in Care, 1998-2009
A41: quarterly | B41: 38 | C41: c3.1 performance over time | D41: California: C3.1: Exits to Permanency (24m in Care), by exit type
A42: quarterly | B42: 39 | C42: c3.3 performance over time | D42: California: C3.3: In Care 3 Years or Longer (Emancipated or Age 18)
A43: quarterly | B43: 40 | C43: trends in placement stability over time for the three federal stability measures | D43: California: C4.1,2,3: Placement Stability
A44: quarterly | B44: 41 | C44: c1.4 reentry after reunification | D44: California: C1.4: Reentering Care After Exit to Reunification at 12 and 24 Months
A45: quarterly | B45: 42 | C45: cws outcomes system, ab636 improvement/decline | D45: California CWS Outcomes System: Federal Measures, % Improvement/Decline
A46: quarterly | B46: 43 | C46: cws outcomes system, federal measures improvement/decline | D46: California CWS Outcomes System: AB636, % Improvement/Decline
A47: quarterly | B47: 44 | C47: calculation of federal measure performance relative to std/goal | D47: California CWS Outcomes System: Performance Relative to Federal Standard/Goal
A48: quarterly | B48: 45 | C48: citation slide | D48: n/a

Sheet ExcelPowerpointinstructions
A1: Instructions for Excel:
A2: 1. All of the basic URLs for the tables in the "Source" row of each of the worksheets.
A3: 2. The Agency Type is always Child Welfare. The Output Type required for each of the tables is at the top of each worksheet.
A4: On the CMS/CWS website, the option for choosing single or multiple time periods is referred to as either Output Type or Drill Down Report. For consistency, throughout this workbook, that option is always referred to as Output Type.
A5: 3. Each table has the filters needed to create county reports identical to the California reports shown in the worksheets.
A6: (The only filter not included is the one for selecting individual counties or CA as a whole).
A7: If the filters read "Subgroups: No Restrictions" either clicking all of the subgroups or not clicking any will provide the same data.
A8: If a filter is not described, any of the options can be selected to provide the data. Generally, the filters are not included when the CMS/CWS website provides the option for a more detailed breakdown than the table/chart uses.
A9: 4. Some of the worksheets also have additional notes; these are used to convey information when the original reports were manipulated to create the ones shown in the worksheets
A10: (I.E. when two rows from the CWS/CMS table have to be added together to create the row used in the worksheet).
A11: 5. Some of the reports are created using DataDude; if your county does not have the DataDude tool or needs a users' guide for the tool; please contact
A12: Emily Putnam Hornstein at eputnamhornstein@berkeley.edu or Bryn King at brynking@berkeley.edu. Alternately, data can be entered manually from the static reports by following the report link.
A13: 6. If you do not download the slide workbook every quarter from the website, the tables that show changes over time will have to have their source data extended an extra column
A14: in order to include the new data.
A15: 7. The racial disparity rates do not automatically link to the updated numbers in the chart; the numbers are in text boxes that must be updated.
A19: Instructions for Powerpoint:
A20: 1. Go to the worksheet for the table/chart that you want to copy.
A21: 2. Click on Edit at the top of Excel and then select "Copy"
A22: 3. In Powerpoint, click on "Edit" and click "Paste Special."
A23: 4. In the menu that comes up, select "Bitmap" and then click ok.
A24: 5. The table/chart should be centered and sized appropriately.
A28: Questions? Please contact:
A29: Emily Putnam Hornstein at eputnamhornstein@berkeley.edu
A30: Bryn King at brynking@berkeley.edu

Sheet table_view
A1: EXTRACT: | B1: ='Slide Descriptions'!A1 -> Q4_14
A2: TITLE | B2: California Example: Age of Children in Foster Care (2013 entries, July 1, 2013 caseload, 2013 exits)
A3: NOTES: | B3: Some of the age groups will have to be added together to create the rows provided in this worksheet;
B4: Formulas are in place to calcuate percentages and totals; do not include 18-20 in totals
A5: OUTPUT TYPE: | B5: Single Time Period (California or Individual County)
A6: SOURCE: | B6: Entries (http://cssr.berkeley.edu/ucb_childwelfare/Entries.aspx);
B7: Point in Time (http://cssr.berkeley.edu/ucb_childwelfare/PIT.aspx);
B8: Exits (http://cssr.berkeley.edu/ucb_childwelfare/Exits.asp)
A9: FILTERS: | B9: See below
B11: Entries | C11: Point in Time | D11: Exits
A12: <1 yr | B12: =B19/B$25*100 -> 19.26032361 | C12: 7.28459333 | D12: 5.925570405
A13: 1-5 yrs | B13: 33.31355032 | C13: 31.66591218 | D13: 42.46104999
A14: 6-10 yrs | B14: 22.27150622 | C14: 22.99117248 | D14: 26.48969948
A15: 11-15 yrs | B15: 18.48878616 | C15: 24.47563 | D15: 18.64801004
A16: 16-17 yrs | B16: 6.665833698 | C16: 13.58269202 | D16: 6.475670088
A18: Age | B18: Entries (raw counts) | C18: PIT (raw counts) | D18: Exits (raw count)
A19: <1 yr | B19: 6166 | C19: 3862 | D19: 1605
A20: 1-5 yrs | B20: 10665 | C20: 16788 | D20: 11501
A21: 6-10 yrs | B21: 7130 | C21: 12189 | D21: 7175
A22: 11-15 yrs | B22: 5919 | C22: 12976 | D22: 5051
A23: 16-17 yrs | B23: 2134 | C23: 7201 | D23: 1754
A25: TOTAL | B25: =SUM(B19:B23) -> 32014 | C25: =SUM(C19:C23) -> 53016 | D25: =SUM(D19:D23) -> 27086
A26: PCT TOTAL | B26: =SUM(B12:B16) -> 100 | C26: =SUM(C12:C16) -> 100 | D26: =SUM(D12:D16) -> 100
A28: FILTERS
A29: Entries:
A30: Time Period: | B30: Jan-Dec 2013
A31: Rate Type: | B31: All Children Entering
A32: Table Output: | B32: Count
A33: Row Dimension: | B33: Age Group
A34: Subgroups: | B34: No Restrictions
A36: Point in Time:
A37: Time Period: | B37: 2013-07-01
A38: Table Output: | B38: Count
A39: Row Dimension: | B39: Age group
A40: Subgroups: | B40: No Restrictions
A42: Exits:
A43: Time Period: | B43: Jan-Dec 2013
A44: Days in Care: | B44: All
A45: Episode Count: | B45: All Exit
A46: Table Output: | B46: Count
A47: Column Dimension: | B47: Age Group
A48: Subgroups: | B48: No Restrictions

Sheet table_rates
A1: EXTRACT: | B1: ='Slide Descriptions'!A1 -> Q4_14
A2: TITLE | B2: California: Allegation, Substantiation, and Entry Rates (per 1,000)
A3: NOTES: | B3: For Percent Change, download the CWS Outcomes Summary Sheet.
B4: The first sheet has a "comparison to baseline data percent change" column for referral (allegation) rates, substantiation rates, and entry rates.
B5: Those numbers will have to be manually changed in the parentheses in order for the slides to reflect the correct numbers.
B6: Three separate tables will need to be access from the Rate Reports - Entries, Substantiations, and Allegations
A7: OUTPUT TYPE: | B7: Multiple Time Periods Summary Table (California and All Counties)
A8: SOURCE: | B8: Allegation and Substantiation Rate Reports (http://cssr.berkeley.edu/ucb_childwelfare/RefRates.aspx)
B9: CWS Outcomes Summary Sheet (http://cssr.berkeley.edu/ucb_childwelfare/Ccfsr.aspx)
A10: FILTERS: | B10: See below
B12: 2004 | C12: 2005 | D12: 2006 | E12: 2007 | F12: 2008 | G12: 2009 | H12: 2010 | I12: 2011 | J12: 2012 | K12: 2013 | L12: 2014
A13: Entry Rate (5-year % change: +2.3) | B13: 3.7 | C13: 3.9 | D13: 3.9 | E13: 3.8 | F13: 3.4 | G13: 3.4 | H13: 3.3 | I13: 3.3 | J13: 3.4 | K13: 3.5 | L13: 3.5
A14: Substantiation Rate (5-year % change: -12.5) | B14: 11.6 | C14: 11.5 | D14: 11.3 | E14: 11.2 | F14: 10.2 | G14: 9.9 | H14: 9.6 | I14: 9.5 | J14: 9.3 | K14: 9.2 | L14: 8.7
A15: Allegation Rate (5-year % change: +7.8) | B15: 51.2 | C15: 50.3 | D15: 50.5 | E15: 51.5 | F15: 51 | G15: 50.7 | H15: 51.6 | I15: 51.6 | J15: 53.2 | K15: 53 | L15: 54.6
A17: allegation rate percent change | B17: 7.8
A18: substantiation rate percent change | B18: -12.5
A19: entry rate percent change | B19: 2.3
A22: FILTERS:
A23: Statistic: | B23: Entry: Incidence per 1,000 Children
B24: Substantiations: Incidence per 1,000 Children
B25: Allegations: Incidence per 1,000 Children
A26: Subgroups: | B26: No Restrictions

Sheet table_entries
A1: EXTRACT: | B1: ='Slide Descriptions'!A1 -> Q4_14
A2: TITLE | B2: California: Entries to Foster Care Over Time, by placement type
A3: NOTES: | B3: Group and Shelter must be added together; the report places them in separate rows; total includes all placements, not only those included in this chart.
A4: OUTPUT TYPE: | B4: Multiple Time Periods (California or Individual County)
A5: SOURCE: | B5: Entries report (http://cssr.berkeley.edu/ucb_childwelfare/Entries.aspx)
A6: FILTERS: | B6: See below
B8: 2004 | F8: 2005 | J8: 2006 | N8: 2007 | R8: 2008 | V8: 2009 | Z8: 2010 | AD8: 2011 | AH8: 2012 | AL8: 2013 | AP8: 2014
A9: Kin | B9: 5745 | C9: 5971 | D9: 6304 | E9: 6642 | F9: 6975 | G9: 7111 | H9: 7230 | I9: 7250 | J9: 7378 | K9: 7565 | L9: 7774 | M9: 7853 | N9: 7441 | O9: 6869 | P9: 6342 | Q9: 6022 | R9: 5823 | S9: 5712 | T9: 5513 | U9: 5452 | V9: 5600 | W9: 5637 | X9: 5824 | Y9: 6135 | Z9: 6272 | AA9: 6336 | AB9: 6506 | AC9: 6429 | AD9: 6540 | AE9: 6837 | AF9: 7081 | AG9: 7325 | AH9: 7592 | AI9: 7661 | AJ9: 7868 | AK9: 8235 | AL9: 8380 | AM9: 8534 | AN9: 8461 | AO9: 8341 | AP9: 8093
A10: Foster | B10: 9816 | C10: 9695 | D10: 9280 | E10: 9088 | F10: 8852 | G10: 8270 | H10: 8081 | I10: 7836 | J10: 7941 | K10: 7968 | L10: 7735 | M10: 7776 | N10: 7293 | O10: 6974 | P10: 6908 | Q10: 6556 | R10: 6602 | S10: 6618 | T10: 6435 | U10: 6330 | V10: 6217 | W10: 6045 | X10: 6069 | Y10: 6049 | Z10: 5977 | AA10: 5978 | AB10: 5784 | AC10: 5609 | AD10: 5396 | AE10: 5281 | AF10: 5302 | AG10: 5367 | AH10: 5418 | AI10: 5412 | AJ10: 5422 | AK10: 5303 | AL10: 5328 | AM10: 5351 | AN10: 5380 | AO10: 5394 | AP10: 5300
A11: FFA | B11: 11738 | C11: 12322 | D11: 12884 | E11: 13069 | F11: 13408 | G11: 13336 | H11: 13431 | I11: 13842 | J11: 14292 | K11: 14485 | L11: 14929 | M11: 14775 | N11: 14452 | O11: 14176 | P11: 13993 | Q11: 14184 | R11: 14244 | S11: 14473 | T11: 14250 | U11: 14460 | V11: 14555 | W11: 14290 | X11: 14136 | Y11: 13872 | Z11: 13795 | AA11: 14124 | AB11: 14103 | AC11: 13746 | AD11: 13388 | AE11: 13008 | AF11: 12965 | AG11: 12973 | AH11: 13298 | AI11: 13548 | AJ11: 13806 | AK11: 14228 | AL11: 14243 | AM11: 14018 | AN11: 13880 | AO11: 13898 | AP11: 13762
A12: Group/Shelter | B12: 6669 | C12: 6557 | D12: 6607 | E12: 6744 | F12: 6959 | G12: 6996 | H12: 6802 | I12: 6636 | J12: 6492 | K12: 6340 | L12: 6335 | M12: 5998 | N12: 5761 | O12: 5477 | P12: 5235 | Q12: 5134 | R12: 5017 | S12: 4823 | T12: 4588 | U12: 4385 | V12: 4142 | W12: 3940 | X12: 3805 | Y12: 3677 | Z12: 3602 | AA12: 3699 | AB12: 3698 | AC12: 3684 | AD12: 3756 | AE12: 3669 | AF12: 3616 | AG12: 3623 | AH12: 3587 | AI12: 3425 | AJ12: 3397 | AK12: 3409 | AL12: 3400 | AM12: 3609 | AN12: 3784 | AO12: 3885 | AP12: 3910
A13: Total | B13: 35342 | C13: 35955 | D13: 36465 | E13: 36940 | F13: 37623 | G13: 37061 | H13: 36863 | I13: 36831 | J13: 37334 | K13: 37567 | L13: 37920 | M13: 37552 | N13: 36101 | O13: 34675 | P13: 33652 | Q13: 33062 | R13: 32876 | S13: 32794 | T13: 31958 | U13: 31840 | V13: 31696 | W13: 31062 | X13: 30941 | Y13: 30803 | Z13: 30705 | AA13: 31250 | AB13: 31182 | AC13: 30508 | AD13: 30105 | AE13: 29768 | AF13: 29973 | AG13: 30369 | AH13: 31060 | AI13: 31229 | AJ13: 31671 | AK13: 32332 | AL13: 32462 | AM13: 32684 | AN13: 32716 | AO13: 32704 | AP13: 32184
A15: FILTERS:
A16: Days in Care: | B16: All
A17: Episode Count: | B17: All Children Entering
A18: Table Output: | B18: Count
A19: Row Dimension: | B19: Placement Type
A20: Interval: | B20: All
A21: Subgroups: | B21: No Restrictions

Sheet table_caseload
A1: EXTRACT: | B1: ='Slide Descriptions'!A1 -> Q4_14
A2: TITLE | B2: California: Out-of-Home Caseload Over Time, by placement type
A3: NOTES: | B3: Group and Shelter must be added together; the report places them in separate rows; total includes all placement types, not only those shown in this chart.
A4: OUTPUT TYPE | B4: Multiple Time Periods (California or Individual County)
A5: SOURCE: | B5: Point in Time Report (http://cssr.berkeley.edu/ucb_childwelfare/PIT.aspx)
A6: FILTERS: | B6: See below
B8: 2005 | F8: 2006 | J8: 2007 | N8: 2008 | R8: 2009 | V8: 2010 | Z8: 2011 | AD8: 2012 | AH8: 2013 | AL8: 2014 | AP8: 2015
A9: Kin | B9: 26097 | C9: 26207 | D9: 26306 | E9: 26334 | F9: 26731 | G9: 26753 | H9: 26589 | I9: 26519 | J9: 26469 | K9: 26486 | L9: 26365 | M9: 25825 | N9: 25284 | O9: 24092 | P9: 23169 | Q9: 22136 | R9: 21510 | S9: 20841 | T9: 20142 | U9: 19557 | V9: 19105 | W9: 18583 | X9: 18465 | Y9: 18547 | Z9: 18869 | AA9: 18834 | AB9: 18967 | AC9: 18909 | AD9: 19144 | AE9: 19225 | AF9: 19594 | AG9: 19806 | AH9: 20226 | AI9: 20194 | AJ9: 20777 | AK9: 21161 | AL9: 21765 | AM9: 21705 | AN9: 21752 | AO9: 22015 | AP9: 22260
A10: Foster | B10: 9794 | C10: 9837 | D10: 9451 | E10: 9212 | F10: 8769 | G10: 8661 | H10: 8422 | I10: 8130 | J10: 7961 | K10: 7914 | L10: 7545 | M10: 7465 | N10: 7073 | O10: 7060 | P10: 6745 | Q10: 6495 | R10: 6346 | S10: 6273 | T10: 5933 | U10: 5775 | V10: 5603 | W10: 5673 | X10: 5637 | Y10: 5617 | Z10: 5547 | AA10: 5608 | AB10: 5425 | AC10: 5375 | AD10: 5255 | AE10: 5275 | AF10: 5281 | AG10: 5297 | AH10: 5186 | AI10: 5262 | AJ10: 5385 | AK10: 5464 | AL10: 5413 | AM10: 5584 | AN10: 5606 | AO10: 5660 | AP10: 5608
A11: FFA | B11: 18361 | C11: 18998 | D11: 18872 | E11: 18772 | F11: 18513 | G11: 19109 | H11: 19158 | I11: 19156 | J11: 18936 | K11: 19481 | L11: 19491 | M11: 19179 | N11: 18358 | O11: 18437 | P11: 18114 | Q11: 18036 | R11: 17601 | S11: 17939 | T11: 17641 | U11: 17681 | V11: 17368 | W11: 17345 | X11: 16961 | Y11: 16880 | Z11: 16391 | AA11: 16553 | AB11: 16032 | AC11: 15674 | AD11: 14799 | AE11: 14849 | AF11: 14713 | AG11: 14657 | AH11: 14482 | AI11: 14977 | AJ11: 15050 | AK11: 15433 | AL11: 15256 | AM11: 15511 | AN11: 15561 | AO11: 15911 | AP11: 15749
A12: Group/Shelter | B12: 6901 | C12: 6944 | D12: 6826 | E12: 6634 | F12: 6560 | G12: 6470 | H12: 6283 | I12: 6074 | J12: 5985 | K12: 5879 | L12: 5779 | M12: 5559 | N12: 5408 | O12: 5316 | P12: 4990 | Q12: 4771 | R12: 4615 | S12: 4514 | T12: 4271 | U12: 4169 | V12: 3964 | W12: 3960 | X12: 3956 | Y12: 3874 | Z12: 3929 | AA12: 4070 | AB12: 3925 | AC12: 3805 | AD12: 3799 | AE12: 3849 | AF12: 3843 | AG12: 3892 | AH12: 3821 | AI12: 3836 | AJ12: 3854 | AK12: 3830 | AL12: 3855 | AM12: 3893 | AN12: 3914 | AO12: 3918 | AP12: 3926
A13: Total | B13: 78887 | C13: 79834 | D13: 79054 | E13: 78257 | F13: 76995 | G13: 77389 | H13: 76729 | I13: 75973 | J13: 75163 | K13: 75638 | L13: 74825 | M13: 73343 | N13: 71016 | O13: 69975 | P13: 67858 | Q13: 65964 | R13: 64260 | S13: 63679 | T13: 61924 | U13: 60555 | V13: 59157 | W13: 58326 | X13: 57338 | Y13: 57006 | Z13: 56530 | AA13: 56836 | AB13: 55972 | AC13: 55287 | AD13: 54416 | AE13: 54933 | AF13: 55286 | AG13: 55799 | AH13: 56207 | AI13: 57414 | AJ13: 58689 | AK13: 59950 | AL13: 60532 | AM13: 61490 | AN13: 62097 | AO13: 62844 | AP13: 62898
A15: FILTERS:
A16: Table Output: | B16: Count
A17: Row Dimension: | B17: Placement Type
A18: Point in Time: | B18: All
A19: Subgroups: | B19: No Restrictions

Sheet table_exits
A1: EXTRACT: | B1: ='Slide Descriptions'!A1 -> Q4_14
A2: TITLE | B2: California: Exits from Foster Care Over Time, by placement type
A3: NOTES: | B3: The tables for placement type need to be created separately by changing the subgroup restriction on placement type; select both group and shelter to obtain the numbers for that row
B4: Total includes all placement types, not only those shown in this chart.
A5: OUTPUT TYPE: | B5: Multiple Time Periods (California or Individual County)
A6: SOURCE: | B6: Exits (http://cssr.berkeley.edu/ucb_childwelfare/Exits.aspx)
A7: FILTERS: | B7: See below
B9: 2004 | F9: 2005 | J9: 2006 | N9: 2007 | R9: 2008 | V9: 2009 | Z9: 2010 | AD9: 2011 | AH9: 2012 | AL9: 2013 | AP9: 2014
A10: Kin | B10: 11225 | C10: 11026 | D10: 10918 | E10: 10912 | F10: 10984 | G10: 11204 | H10: 11336 | I10: 11405 | J10: 11570 | K10: 11651 | L10: 11794 | M10: 12064 | N10: 12106 | O10: 12264 | P10: 12394 | Q10: 12380 | R10: 12098 | S10: 11777 | T10: 11325 | U10: 10967 | V10: 10900 | W10: 10791 | X10: 10503 | Y10: 10338 | Z10: 10031 | AA10: 9865 | AB10: 10056 | AC10: 10007 | AD10: 10045 | AE10: 10114 | AF10: 9916 | AG10: 9824 | AH10: 9830 | AI10: 9819 | AJ10: 9776 | AK10: 9847 | AL10: 9758 | AM10: 9812 | AN10: 10040 | AO10: 10033 | AP10: 9988
A11: Foster | B11: 5636 | C11: 5450 | D11: 5305 | E11: 5151 | F11: 5054 | G11: 4903 | H11: 4641 | I11: 4557 | J11: 4415 | K11: 4324 | L11: 4374 | M11: 4318 | N11: 4192 | O11: 4106 | P11: 3978 | Q11: 3818 | R11: 3739 | S11: 3689 | T11: 3559 | U11: 3483 | V11: 3426 | W11: 3346 | X11: 3338 | Y11: 3281 | Z11: 3206 | AA11: 3143 | AB11: 3082 | AC11: 2977 | AD11: 2899 | AE11: 2859 | AF11: 2692 | AG11: 2617 | AH11: 2550 | AI11: 2443 | AJ11: 2381 | AK11: 2294 | AL11: 2302 | AM11: 2254 | AN11: 2304 | AO11: 2288 | AP11: 2180
A12: FFA | B12: 9203 | C12: 9130 | D12: 9214 | E12: 9410 | F12: 9568 | G12: 9667 | H12: 9717 | I12: 9739 | J12: 9904 | K12: 10022 | L12: 10252 | M12: 10344 | N12: 10309 | O12: 10400 | P12: 10577 | Q12: 10742 | R12: 10693 | S12: 10559 | T12: 10172 | U12: 10008 | V12: 9986 | W12: 10096 | X12: 10060 | Y12: 9837 | Z12: 9670 | AA12: 9648 | AB12: 9562 | AC12: 9374 | AD12: 9079 | AE12: 8696 | AF12: 8190 | AG12: 7811 | AH12: 7543 | AI12: 7334 | AJ12: 7161 | AK12: 7122 | AL12: 7265 | AM12: 7225 | AN12: 7396 | AO12: 7459 | AP12: 7214
A13: Group/Shelter | B13: 4716 | C13: 4657 | D13: 4588 | E13: 4712 | F13: 4749 | G13: 4728 | H13: 4686 | I13: 4548 | J13: 4442 | K13: 4423 | L13: 4302 | M13: 4175 | N13: 4078 | O13: 3891 | P13: 3819 | Q13: 3678 | R13: 3566 | S13: 3451 | T13: 3299 | U13: 3247 | V13: 3151 | W13: 3049 | X13: 2912 | Y13: 2768 | Z13: 2653 | AA13: 2618 | AB13: 2648 | AC13: 2728 | AD13: 2732 | AE13: 2678 | AF13: 2546 | AG13: 2376 | AH13: 2327 | AI13: 2205 | AJ13: 2180 | AK13: 2191 | AL13: 2109 | AM13: 2220 | AN13: 2257 | AO13: 2246 | AP13: 2274
A14: Total | B14: 39951 | C14: 39550 | D14: 39384 | E14: 39677 | F14: 39955 | G14: 40003 | H14: 39656 | I14: 39510 | J14: 39490 | K14: 39641 | L14: 40141 | M14: 40466 | N14: 40525 | O14: 40576 | P14: 40854 | Q14: 40724 | R14: 39988 | S14: 39293 | T14: 38047 | U14: 37473 | V14: 37119 | W14: 36809 | X14: 35894 | Y14: 34678 | Z14: 33590 | AA14: 33024 | AB14: 32850 | AC14: 32536 | AD14: 32369 | AE14: 31887 | AF14: 30884 | AG14: 30032 | AH14: 29532 | AI14: 28973 | AJ14: 28589 | AK14: 28521 | AL14: 28443 | AM14: 28697 | AN14: 29334 | AO14: 29529 | AP14: 29222
A16: FILTERS:
A17: Days in Care: | B17: All
A18: Episode Count: | B18: Children Exiting
A19: Table Output: | B19: Count
A20: Interval: | B20: All
A21: Subgroups: | B21: No restrictions on age, gender, ethnic group, or caregiver relationship

Sheet table_caseloadtrends
A1: EXTRACT: | B1: ='Slide Descriptions'!A1 -> Q4_14
A2: TITLE | B2: California: Entries, Exits, and Caseload Over Time
A3: NOTES: | B3: To align with Caseload (In Care/PIT) data, Entries and Exits values are plotted at time period end, as indicated by the dates in gray. For example, Jan-Dec 2013 Entries are plotted at Jan 1, 2014--a 1-year shift from the Entries and Exits charts, in which labels correspond to time period start.
A4: SOURCE: | B4: Entries, Exits, and PIT (see earlier URLS and tabs…these data have already been downloaded)
A5: FILTERS: | B5: See above
B7: 2005 | F7: 2006 | J7: 2007 | N7: 2008 | R7: 2009 | V7: 2010 | Z7: 2011 | AD7: 2012 | AH7: 2013 | AL7: 2014 | AP7: 2015
B8: JAN2004-DEC2004 | C8: APR2004-MAR2005 | D8: JUL2004-JUN2005 | E8: OCT2004-SEP2005 | F8: JAN2005-DEC2005 | G8: APR2005-MAR2006 | H8: JUL2005-JUN2006 | I8: OCT2005-SEP2006 | J8: JAN2006-DEC2006 | K8: APR2006-MAR2007 | L8: JUL2006-JUN2007 | M8: OCT2006-SEP2007 | N8: JAN2007-DEC2007 | O8: APR2007-MAR2008 | P8: JUL2007-JUN2008 | Q8: OCT2007-SEP2008 | R8: JAN2008-DEC2008 | S8: APR2008-MAR2009 | T8: JUL2008-JUN2009 | U8: OCT2008-SEP2009 | V8: JAN2009-DEC2009 | W8: APR2009-MAR2010 | X8: JUL2009-JUN2010 | Y8: OCT2009-SEP2010 | Z8: JAN2010-DEC2010 | AA8: APR2010-MAR2011 | AB8: JUL2010-JUN2011 | AC8: OCT2010-SEP2011 | AD8: JAN2011-DEC2011 | AE8: APR2011-MAR2012 | AF8: JUL2011-JUN2012 | AG8: OCT2011-SEP2012 | AH8: JAN2012-DEC2012 | AI8: APR2012-MAR2013 | AJ8: JUL2012-JUN2013 | AK8: OCT2012-SEP2013 | AL8: JAN2013-DEC2013 | AM8: APR2013-MAR2014 | AN8: JUL2013-JUN2014 | AO8: OCT2013-SEP2014 | AP8: JAN2014-DEC2014
A9: Entries | B9: 35342 | C9: 35955 | D9: 36465 | E9: 36940 | F9: 37623 | G9: 37061 | H9: 36863 | I9: 36831 | J9: 37334 | K9: 37567 | L9: 37920 | M9: 37552 | N9: 36101 | O9: 34675 | P9: 33652 | Q9: 33062 | R9: 32876 | S9: 32794 | T9: 31958 | U9: 31840 | V9: 31696 | W9: 31062 | X9: 30941 | Y9: 30803 | Z9: 30705 | AA9: 31250 | AB9: 31182 | AC9: 30508 | AD9: 30105 | AE9: 29768 | AF9: 29973 | AG9: 30369 | AH9: 31060 | AI9: 31229 | AJ9: 31671 | AK9: 32332 | AL9: 32462 | AM9: 32684 | AN9: 32716 | AO9: 32704 | AP9: 32184
A10: Exits | B10: 39951 | C10: 39550 | D10: 39384 | E10: 39677 | F10: 39955 | G10: 40003 | H10: 39656 | I10: 39510 | J10: 39490 | K10: 39641 | L10: 40141 | M10: 40466 | N10: 40525 | O10: 40576 | P10: 40854 | Q10: 40724 | R10: 39988 | S10: 39293 | T10: 38047 | U10: 37473 | V10: 37119 | W10: 36809 | X10: 35894 | Y10: 34678 | Z10: 33590 | AA10: 33024 | AB10: 32850 | AC10: 32536 | AD10: 32369 | AE10: 31887 | AF10: 30884 | AG10: 30032 | AH10: 29532 | AI10: 28973 | AJ10: 28589 | AK10: 28521 | AL10: 28443 | AM10: 28697 | AN10: 29334 | AO10: 29529 | AP10: 29222
B11: 2005-01-01 | C11: 2005-04-01 | D11: 2005-07-01 | E11: 2005-10-01 | F11: 2006-01-01 | G11: 2006-04-01 | H11: 2006-07-01 | I11: 2006-10-01 | J11: 2007-01-01 | K11: 2007-04-01 | L11: 2007-07-01 | M11: 2007-10-01 | N11: 2008-01-01 | O11: 2008-04-01 | P11: 2008-07-01 | Q11: 2008-10-01 | R11: 2009-01-01 | S11: 2009-04-01 | T11: 2009-07-01 | U11: 2009-10-01 | V11: 2010-01-01 | W11: 2010-04-01 | X11: 2010-07-01 | Y11: 2010-10-01 | Z11: 2011-01-01 | AA11: 2011-04-01 | AB11: 2011-07-01 | AC11: 2011-10-01 | AD11: 2012-01-01 | AE11: 2012-04-01 | AF11: 2012-07-01 | AG11: 2012-10-01 | AH11: 2013-01-01 | AI11: 2013-04-01 | AJ11: 2013-07-01 | AK11: 2013-10-01 | AL11: 2014-01-01 | AM11: 2014-04-01 | AN11: 2014-07-01 | AO11: 2014-10-01 | AP11: 2015-01-01
A12: In Care | B12: 78887 | C12: 79834 | D12: 79054 | E12: 78257 | F12: 76995 | G12: 77389 | H12: 76729 | I12: 75973 | J12: 75163 | K12: 75638 | L12: 74825 | M12: 73343 | N12: 71016 | O12: 69975 | P12: 67858 | Q12: 65964 | R12: 64260 | S12: 63679 | T12: 61924 | U12: 60555 | V12: 59157 | W12: 58326 | X12: 57338 | Y12: 57006 | Z12: 56530 | AA12: 56836 | AB12: 55972 | AC12: 55287 | AD12: 54416 | AE12: 54933 | AF12: 55286 | AG12: 55799 | AH12: 56207 | AI12: 57414 | AJ12: 58689 | AK12: 59950 | AL12: 60532 | AM12: 61490 | AN12: 62097 | AO12: 62844 | AP12: 62898

Sheet table_race_contact
A1: EXTRACT: | B1: ='Slide Descriptions'!A1 -> Q4_14
A2: TITLE | B2: California: Ethnicity and Path Through the Child Welfare System (missing values and other race excluded from % calculations)
A3: NOTES: | B3: Calculate percentages using raw count numbers rather than the % provided in the charts; subtract out "Missing" and "Multi-Race" when calculating percentages
B4: I.E. Black child total population/(total child population-multi-race population) *100
B5: Disparity rates must be calculated manually
A6: OUTPUT TYPE: | B6: Single Time Period (California or Individual County)
A7: SOURCE: | B7: Allegation and Substantiation Rates Reports (http://cssr.berkeley.edu/ucb_childwelfare/RefRates.aspx)
B8: In Care Rates Report (http://cssr.berkeley.edu/ucb_childwelfare/InCareRates.aspx)
B9: Exit Report (http://cssr.berkeley.edu/ucb_childwelfare/Exits.aspx)
A10: FILTERS: | B10: See below
B12: Black | C12: White | D12: Latino | E12: Asian/PI | F12: Native American | H12: Population Counts
A13: Population (9,097,971) | B13: 5.620842157 | C13: 28.40307154 | D13: 53.84961473 | E13: 11.72195099 | F13: 0.4045205771 | G13: =SUM(B13:F13) -> 100 | H13: 9097971
A14: Allegations (496,972) | B14: 14.62724092 | C14: 24.95472946 | D14: 55.75276368 | E14: 3.790891411 | F14: 0.8743745297 | G14: 100 | H14: 496972
A15: Substantiations (79,179) | B15: 14.8059945 | C15: 23.47275765 | D15: 57.44510085 | E15: 3.234082865 | F15: 1.042064129 | G15: 100 | H15: 79179
A16: Entries (31,667) | B16: 18.23833206 | C16: 24.52180566 | D16: 53.50038256 | E16: 2.486610559 | F16: 1.252869166 | G16: 100 | H16: 31667
A17: In Care (54,631) | B17: 21.45489211 | C17: 23.50816727 | D17: 51.46020863 | E17: 2.185271417 | F17: 1.391460575 | G17: 100 | H17: 54631
A18: Exits* (28,177) | B18: 17.94359157 | C18: 25.40521242 | D18: 52.86683327 | E18: 2.620492681 | F18: 1.163870046 | G18: 100 | H18: 28177
A20: FILTERS:
A21: Allegation and Substantiation Rates:
A22: Time Period: | B22: Most recent available
A23: Row Dimension: | B23: Ethnic Group
A24: Subgroups: | B24: No restrictions
A26: In Care Rates:
A27: Time Period: | B27: 2014-07-01
A28: Row Dimension: | B28: Ethnic Group
A29: Subgroups: | B29: No restrictions
A31: Exit Rates:
A32: Time Period: | B32: Jan 1, 2014 to Dec 31, 2014
A33: Column Dimension: | B33: Ethnic Group
A34: Days in Care: | B34: All
A35: Episode Count: | B35: Children Exiting
A36: Table Output in: | B36: Count
A37: Subgroups: | B37: Ages 0-18 (Includes both subgroups of 18 year-olds)

Sheet table_allegrates
A1: EXTRACT: | B1: ='Slide Descriptions'!A1 -> Q4_14
A2: TITLE | B2: California: Allegations per 1000 by age and ethnicity
A3: NOTES: | B3: Need to create separate tables for each ethnicity
B4: Totals in "(XX.X*)" will need to be manually updated each quarter
B5: The data for this worksheet, the Substantiations per 1000 by age and ethnicity, and the Entries per 1000 by age and ethnicity are all on the table created by inputting these filters.
A6: OUTPUT TYPE: | B6: Single Time Period (California or Individual County)
A7: SOURCE: | B7: Allegation and Substantiation Rates Reports (http://cssr.berkeley.edu/ucb_childwelfare/RefRates.aspx)
A8: FILTERS: | B8: See below
B10: <1 yr | C10: 1-2 yrs | D10: 3-5 yrs | E10: 6-10 yrs | F10: 11-15 yrs | G10: 16-17 yrs | H10: total
A11: Black (134.2*) | B11: 211 | C11: 149.1 | D11: 148.6 | E11: 140.7 | F11: 117 | G11: 98.8 | H11: 134.2
A12: ALL (54.6*) | B12: 68.7 | C12: 52 | D12: 57.2 | E12: 58.1 | F12: 51.6 | G12: 45.5 | H12: 54.6
A13: White (45.3*) | B13: 55.9 | C13: 38.4 | D13: 45.7 | E13: 49.7 | F13: 44.1 | G13: 39.2 | H13: 45.3
A14: Latino (53.4*) | B14: 60.5 | C14: 50.3 | D14: 55.7 | E14: 56.8 | F14: 51.5 | G14: 45.4 | H14: 53.4
A15: Asian/PI (16.7*) | B15: 14.8 | C15: 12.2 | D15: 15.9 | E15: 18.9 | F15: 17.5 | G15: 15.9 | H15: 16.7
A17: FILTERS:
A18: Time Period: | B18: Jan-Dec 2014
A19: Row Dimension: | B19: Age Group
A20: Subgroup Restrictions: | B20: No restriction on gender

Sheet table_substantiations
A1: EXTRACT: | B1: ='Slide Descriptions'!A1 -> Q4_14
A2: TITLE | B2: California: Substantiations per 1000 by age and ethnicity
A3: NOTES: | B3: Need to create separate tables for each ethnicity
B4: Totals in "(XX.X*)" will need to be manually updated each quarter
B5: The data for this worksheet, the Allegations per 1000 by age and ethnicity, and the Entries per 1000 by age and ethnicity are all on the table created by inputting these filters.
A6: OUTPUT TYPE: | B6: Single Time Period (California or Individual County)
A7: SOURCE: | B7: Allegation and Substantiation Rates Reports (http://cssr.berkeley.edu/ucb_childwelfare/RefRates.aspx)
A8: FILTERS: | B8: See below
B10: <1 yr | C10: 1-2 yrs | D10: 3-5 yrs | E10: 6-10 yrs | F10: 11-15 yrs | G10: 16-17 yrs | H10: total
A11: Black (23.1*) | B11: 73.4 | C11: 32.9 | D11: 26.3 | E11: 20.7 | F11: 16.1 | G11: 11.6 | H11: 23.1
A12: ALL (8.7*) | B12: 22.6 | C12: 10.8 | D12: 9.8 | E12: 8.3 | F12: 6.4 | G12: 4.8 | H12: 8.7
A13: White (7.2*) | B13: 20.7 | C13: 8.8 | D13: 8 | E13: 7 | F13: 5.2 | G13: 3.9 | H13: 7.2
A14: Latino (9.3*) | B14: 22.5 | C14: 11.6 | D14: 10.6 | E14: 9.1 | F14: 7 | G14: 5.3 | H14: 9.3
A15: Asian/PI (2.4*) | B15: 4.8 | C15: 2.6 | D15: 2.5 | E15: 2.5 | F15: 2 | G15: 1.5 | H15: 2.4
A17: FILTERS:
A18: Time Period: | B18: Jan-Dec 2014
A19: Row Dimension: | B19: Age Group
A20: Subgroup Restrictions: | B20: No restriction on gender

Sheet table_entrates
A1: EXTRACT: | B1: ='Slide Descriptions'!A1 -> Q4_14
A2: TITLE | B2: California: Entries per 1000 by age and ethnicity
A3: NOTES: | B3: Need to create separate tables for each ethnicity
B4: Totals in "(XX.X*)" will need to be manually updated each quarter
B5: The data for this worksheet, the Substantiations per 1000 by age and ethnicity, and the Allegations per 1000 by age and ethnicity are all on the table created by inputting these filters.
A6: OUTPUT TYPE: | B6: Single Time Period (California or Individual County)
A7: SOURCE: | B7: Allegation and Substantiation Rates Reports (http://cssr.berkeley.edu/ucb_childwelfare/RefRates.aspx)
A8: FILTERS: | B8: See below
B10: <1 yr | C10: 1-2 yrs | D10: 3-5 yrs | E10: 6-10 yrs | F10: 11-15 yrs | G10: 16-17 yrs | H10: total
A11: Black (11.7*) | B11: 42.7 | C11: 17 | D11: 12.5 | E11: 9.1 | F11: 8.4 | G11: 7.2 | H11: 11.7
A12: ALL (3.5*) | B12: 12.2 | C12: 4.7 | D12: 3.8 | E12: 2.8 | F12: 2.3 | G12: 2 | H12: 3.5
A13: White (3.1*) | B13: 12.4 | C13: 4.2 | D13: 3.3 | E13: 2.5 | F13: 1.9 | G13: 1.8 | H13: 3.1
A14: Latino (3.6*) | B14: 12.2 | C14: 5 | D14: 4 | E14: 3 | F14: 2.3 | G14: 2 | H14: 3.6
A15: Asian/PI (0.8*) | B15: 2.4 | C15: 0.8 | D15: 0.8 | E15: 0.7 | F15: 0.6 | G15: 0.6 | H15: 0.8
A18: FILTERS:
A19: Time Period: | B19: Jan-Dec 2014
A20: Row Dimension: | B20: Age Group
A21: Subgroup Restrictions: | B21: No restriction on gender

Sheet table_incarerates
A1: EXTRACT: | B1: ='Slide Descriptions'!A1 -> Q4_14
A2: TITLE | B2: California: Children in Foster Care per 1000 by age and ethnicity
A3: NOTES: | B3: Need to create separate tables for each ethnic group.
B4: Totals in "(XX.X*)" will need to be manually updated each quarter
A5: OUTPUT TYPE: | B5: Single Time Period (California or Individual County)
A6: SOURCE: | B6: In Care Rates reports (http://cssr.berkeley.edu/ucb_childwelfare/InCareRates.aspx)
A7: FILTERS: | B7: See below
B9: <1 yr | C9: 1-2 yrs | D9: 3-5 yrs | E9: 6-10 yrs | F9: 11-15 yrs | G9: 16-17 yrs | H9: total
A10: Black (24.0*) | B10: 27.7 | C10: 33.6 | D10: 23.8 | E10: 19.1 | F10: 21.9 | G10: 30.4 | H10: 24
A11: ALL (6.0*) | B11: 7.8 | C11: 8.2 | D11: 6.3 | E11: 5.2 | F11: 5.1 | G11: 6.8 | H11: 6
A12: White (5.2*) | B12: 7.9 | C12: 7.1 | D12: 5.4 | E12: 4.5 | F12: 4.2 | G12: 5.8 | H12: 5.2
A13: Latino (6.0*) | B13: 8 | C13: 8.5 | D13: 6.6 | E13: 5.4 | F13: 4.9 | G13: 6.1 | H13: 6
A14: Asian/PI (1.2*) | B14: 1.3 | C14: 1.3 | D14: 1 | E14: 1 | F14: 1.1 | G14: 1.7 | H14: 1.2
A16: Time Period: | B16: 2014-07-01
A17: Row Dimension: | B17: Age Group
A18: Subgroup Restrictions: | B18: No restriction on gender

Sheet table_racerates
A1: EXTRACT: | B1: ='Slide Descriptions'!A1 -> Q4_14
A2: TITLE | B2: Black Children / White Children / Hispanic Children / Asian Pacific Islander Children
A3: NOTES: | B3: Unique children, <18 yrs , no restriction on days in care; all of this data has already been downloaded
A4: SOURCE: | B4: All of the data pulls from the tables for the 3D charts
A7: BLACK | B7: <1 yr | C7: 1-2 yrs | D7: 3-5 yrs | E7: 6-10 yrs | F7: 11-15 yrs | G7: 16-17 yrs
A8: allegations | B8: =table_allegrates!B11 -> 211 | C8: =table_allegrates!C11 -> 149.1 | D8: =table_allegrates!D11 -> 148.6 | E8: =table_allegrates!E11 -> 140.7 | F8: =table_allegrates!F11 -> 117 | G8: =table_allegrates!G11 -> 98.8
A9: substantiations | B9: =table_substantiations!B11 -> 73.4 | C9: =table_substantiations!C11 -> 32.9 | D9: =table_substantiations!D11 -> 26.3 | E9: =table_substantiations!E11 -> 20.7 | F9: =table_substantiations!F11 -> 16.1 | G9: =table_substantiations!G11 -> 11.6
A10: entries | B10: =table_entrates!B11 -> 42.7 | C10: =table_entrates!C11 -> 17 | D10: =table_entrates!D11 -> 12.5 | E10: =table_entrates!E11 -> 9.1 | F10: =table_entrates!F11 -> 8.4 | G10: =table_entrates!G11 -> 7.2
A11: in care | B11: =table_incarerates!B10 -> 27.7 | C11: =table_incarerates!C10 -> 33.6 | D11: =table_incarerates!D10 -> 23.8 | E11: =table_incarerates!E10 -> 19.1 | F11: =table_incarerates!F10 -> 21.9 | G11: =table_incarerates!G10 -> 30.4
A13: WHITE | B13: <1 yr | C13: 1-2 yrs | D13: 3-5 yrs | E13: 6-10 yrs | F13: 11-15 yrs | G13: 16-17 yrs
A14: allegations | B14: =table_allegrates!B13 -> 55.9 | C14: =table_allegrates!C13 -> 38.4 | D14: =table_allegrates!D13 -> 45.7 | E14: =table_allegrates!E13 -> 49.7 | F14: =table_allegrates!F13 -> 44.1 | G14: =table_allegrates!G13 -> 39.2
A15: substantiations | B15: =table_substantiations!B13 -> 20.7 | C15: =table_substantiations!C13 -> 8.8 | D15: =table_substantiations!D13 -> 8 | E15: =table_substantiations!E13 -> 7 | F15: =table_substantiations!F13 -> 5.2 | G15: =table_substantiations!G13 -> 3.9
A16: entries | B16: =table_entrates!B13 -> 12.4 | C16: =table_entrates!C13 -> 4.2 | D16: =table_entrates!D13 -> 3.3 | E16: =table_entrates!E13 -> 2.5 | F16: =table_entrates!F13 -> 1.9 | G16: =table_entrates!G13 -> 1.8
A17: in care | B17: =table_incarerates!B12 -> 7.9 | C17: =table_incarerates!C12 -> 7.1 | D17: =table_incarerates!D12 -> 5.4 | E17: =table_incarerates!E12 -> 4.5 | F17: =table_incarerates!F12 -> 4.2 | G17: =table_incarerates!G12 -> 5.8
A19: LATINO | B19: <1 yr | C19: 1-2 yrs | D19: 3-5 yrs | E19: 6-10 yrs | F19: 11-15 yrs | G19: 16-17 yrs
A20: allegations | B20: =table_allegrates!B14 -> 60.5 | C20: =table_allegrates!C14 -> 50.3 | D20: =table_allegrates!D14 -> 55.7 | E20: =table_allegrates!E14 -> 56.8 | F20: =table_allegrates!F14 -> 51.5 | G20: =table_allegrates!G14 -> 45.4
A21: substantiations | B21: =table_substantiations!B14 -> 22.5 | C21: =table_substantiations!C14 -> 11.6 | D21: =table_substantiations!D14 -> 10.6 | E21: =table_substantiations!E14 -> 9.1 | F21: =table_substantiations!F14 -> 7 | G21: =table_substantiations!G14 -> 5.3
A22: entries | B22: =table_entrates!B14 -> 12.2 | C22: =table_entrates!C14 -> 5 | D22: =table_entrates!D14 -> 4 | E22: =table_entrates!E14 -> 3 | F22: =table_entrates!F14 -> 2.3 | G22: =table_entrates!G14 -> 2
A23: in care | B23: =table_incarerates!B13 -> 8 | C23: =table_incarerates!C13 -> 8.5 | D23: =table_incarerates!D13 -> 6.6 | E23: =table_incarerates!E13 -> 5.4 | F23: =table_incarerates!F13 -> 4.9 | G23: =table_incarerates!G13 -> 6.1
A25: ASIAN/PI | B25: <1 yr | C25: 1-2 yrs | D25: 3-5 yrs | E25: 6-10 yrs | F25: 11-15 yrs | G25: 16-17 yrs
A26: allegations | B26: =table_allegrates!B15 -> 14.8 | C26: =table_allegrates!C15 -> 12.2 | D26: =table_allegrates!D15 -> 15.9 | E26: =table_allegrates!E15 -> 18.9 | F26: =table_allegrates!F15 -> 17.5 | G26: =table_allegrates!G15 -> 15.9
A27: substantiations | B27: =table_substantiations!B15 -> 4.8 | C27: =table_substantiations!C15 -> 2.6 | D27: =table_substantiations!D15 -> 2.5 | E27: =table_substantiations!E15 -> 2.5 | F27: =table_substantiations!F15 -> 2 | G27: =table_substantiations!G15 -> 1.5
A28: entries | B28: =table_entrates!B15 -> 2.4 | C28: =table_entrates!C15 -> 0.8 | D28: =table_entrates!D15 -> 0.8 | E28: =table_entrates!E15 -> 0.7 | F28: =table_entrates!F15 -> 0.6 | G28: =table_entrates!G15 -> 0.6
A29: in care | B29: =table_incarerates!B14 -> 1.3 | C29: =table_incarerates!C14 -> 1.3 | D29: =table_incarerates!D14 -> 1 | E29: =table_incarerates!E14 -> 1 | F29: =table_incarerates!F14 -> 1.1 | G29: =table_incarerates!G14 -> 1.7

Sheet Alleg_overtime_race
A1: EXTRACT: | B1: ='Slide Descriptions'!A1 -> Q4_14
A2: TITLE | B2: California: Allegation Rates over Time (Per 1,000), by Race/Ethnicity
A3: NOTES: | B3: Need to create separate tables for each ethnicity
A4: OUTPUT TYPE: | B4: Multiple Time Periods Summary (California and All Counties)
A5: SOURCE: | B5: Allegation and Substantiation Rates reports (http://cssr.berkeley.edu/ucb_childwelfare/RefRates.aspx)
A6: FILTERS: | B6: See below
B8: 2004 | C8: 2005 | D8: 2006 | E8: 2007 | F8: 2008 | G8: 2009 | H8: 2010 | I8: 2011 | J8: 2012 | K8: 2013 | L8: 2014
A9: Black | B9: 112.6 | C9: 113.4 | D9: 116.5 | E9: 117.7 | F9: 118.7 | G9: 121.4 | H9: 126.5 | I9: 126.6 | J9: 129.8 | K9: 131.1 | L9: 134.2
A10: White | B10: 46.9 | C10: 45.8 | D10: 45.5 | E10: 45.8 | F10: 44.9 | G10: 45.4 | H10: 47.1 | I10: 46.8 | J10: 47.3 | K10: 45.5 | L10: 45.3
A11: Latino | B11: 47.7 | C11: 47.7 | D11: 49.2 | E11: 51.2 | F11: 50.9 | G11: 50 | H11: 50.7 | I11: 50.1 | J11: 51.5 | K11: 51.8 | L11: 53.4
A12: Asian/PI | B12: 17.3 | C12: 17.3 | D12: 17.7 | E12: 18.3 | F12: 18.6 | G12: 18 | H12: 16.9 | I12: 16.7 | J12: 17.3 | K12: 17 | L12: 16.7
A13: Native American | B13: 97.7 | C13: 102 | D13: 95.2 | E13: 93.3 | F13: 91.8 | G13: 95.8 | H13: 100.4 | I13: 99.6 | J13: 102 | K13: 104 | L13: 111.5
A14: All | B14: 51.2 | C14: 50.3 | D14: 50.5 | E14: 51.5 | F14: 51 | G14: 50.7 | H14: 51.6 | I14: 51.6 | J14: 53.2 | K14: 53 | L14: 54.6
A16: FILTERS:
A17: Statistic: | B17: Allegations: Incidence Per 1,000 Children
A18: Subgroups: | B18: No restriction on age or gender

Sheet Subs_overtime_race
A1: EXTRACT: | B1: ='Slide Descriptions'!A1 -> Q4_14
A2: TITLE | B2: California: Substantiation Rates over Time (Per 1,000), by Race/Ethnicity
A3: NOTES: | B3: Need to create separate tables for each ethnicity
A4: OUTPUT TYPE: | B4: Multiple Time Periods Summary (California and All Counties)
A5: SOURCE: | B5: Allegation and Substantiation Rates reports (http://cssr.berkeley.edu/ucb_childwelfare/RefRates.aspx)
A6: FILTERS: | B6: See below
B8: 2004 | C8: 2005 | D8: 2006 | E8: 2007 | F8: 2008 | G8: 2009 | H8: 2010 | I8: 2011 | J8: 2012 | K8: 2013 | L8: 2014
A9: Black | B9: 26.2 | C9: 26 | D9: 26.2 | E9: 26 | F9: 25.4 | G9: 25.4 | H9: 24.2 | I9: 24.2 | J9: 24 | K9: 25.1 | L9: 23.1
A10: White | B10: 10.6 | C10: 10.3 | D10: 10.1 | E10: 9.9 | F10: 9.2 | G10: 8.9 | H10: 8.6 | I10: 8.5 | J10: 8.2 | K10: 7.8 | L10: 7.2
A11: Latino | B11: 11.8 | C11: 11.8 | D11: 11.9 | E11: 11.9 | F11: 10.6 | G11: 10.4 | H11: 10.2 | I11: 10 | J11: 9.8 | K11: 9.9 | L11: 9.3
A12: Asian/PI | B12: 4 | C12: 4.3 | D12: 4.3 | E12: 4.4 | F12: 4 | G12: 3.5 | H12: 2.8 | I12: 2.9 | J12: 2.7 | K12: 2.6 | L12: 2.4
A13: Native American | B13: 27.1 | C13: 28.7 | D13: 26.7 | E13: 27.7 | F13: 23.6 | G13: 23.6 | H13: 20.3 | I13: 22.7 | J13: 24.1 | K13: 19.5 | L13: 22.6
A14: All | B14: 11.6 | C14: 11.5 | D14: 11.3 | E14: 11.2 | F14: 10.2 | G14: 9.9 | H14: 9.6 | I14: 9.5 | J14: 9.3 | K14: 9.2 | L14: 8.7
A16: FILTERS:
A17: Statistic: | B17: Substantiations: Incidence Per 1,000 Children
A18: Subgroups: | B18: No restriction on age or gender

Sheet Entries_overtime_race
A1: EXTRACT: | B1: ='Slide Descriptions'!A1 -> Q4_14
A2: TITLE | B2: California: Entry Rates over Time (Per 1,000), by Race/Ethnicity
A3: NOTES: | B3: Need to create separate tables for each ethnicity
A4: OUTPUT TYPE: | B4: Multiple Time Periods Summary (California and All Counties)
A5: SOURCE: | B5: Allegation and Substantiation Rates reports (http://cssr.berkeley.edu/ucb_childwelfare/RefRates.aspx)
A6: FILTERS: | B6: See below
B8: 2004 | C8: 2005 | D8: 2006 | E8: 2007 | F8: 2008 | G8: 2009 | H8: 2010 | I8: 2011 | J8: 2012 | K8: 2013 | L8: 2014
A9: Black | B9: 11.1 | C9: 11.5 | D9: 11.8 | E9: 11.4 | F9: 11.7 | G9: 11.6 | H9: 10.9 | I9: 10.8 | J9: 11.1 | K9: 11.8 | L9: 11.7
A10: White | B10: 3.5 | C10: 3.6 | D10: 3.5 | E10: 3.2 | F10: 3 | G10: 3 | H10: 3.1 | I10: 3.1 | J10: 3.2 | K10: 3.2 | L10: 3.1
A11: Latino | B11: 3.6 | C11: 3.9 | D11: 3.9 | E11: 3.9 | F11: 3.4 | G11: 3.4 | H11: 3.3 | I11: 3.2 | J11: 3.4 | K11: 3.6 | L11: 3.6
A12: Asian/PI | B12: 1.1 | C12: 1.2 | D12: 1.2 | E12: 1.3 | F12: 1.1 | G12: 1 | H12: 0.8 | I12: 0.9 | J12: 0.8 | K12: 0.8 | L12: 0.8
A13: Native American | B13: 10.6 | C13: 11.3 | D13: 12.1 | E13: 11.9 | F13: 10 | G13: 10 | H13: 9.6 | I13: 11.4 | J13: 12.6 | K13: 10.5 | L13: 11.2
A14: All | B14: 3.7 | C14: 3.9 | D14: 3.9 | E14: 3.8 | F14: 3.4 | G14: 3.4 | H14: 3.3 | I14: 3.3 | J14: 3.4 | K14: 3.5 | L14: 3.5
A16: FILTERS:
A17: Statistic: | B17: Entries: Incidence Per 1,000 Children
A18: Subgroups: | B18: No restriction on age or gender

Sheet Incare_overtime_race
A1: EXTRACT: | B1: ='Slide Descriptions'!A1 -> Q4_14
A2: TITLE | B2: California: In Care Rates over Time (Per 1,000), by Race/Ethnicity
A3: NOTES: | B3: Need to create separate tables for each ethnicity
A4: OUTPUT TYPE: | B4: Multiple Time Periods Summary (California and All Counties); Statistic: Entries: Incidence Per 1,000 Children; No restrictrion on age or gender subgroups
A5: SOURCE: | B5: In Care Rates (http://cssr.berkeley.edu/ucb_childwelfare/InCareRates.aspx)
A6: FILTERS: | B6: See below
B8: 2004 | C8: 2005 | D8: 2006 | E8: 2007 | F8: 2008 | G8: 2009 | H8: 2010 | I8: 2011 | J8: 2012 | K8: 2013 | L8: 2014
A9: Black | B9: 39 | C9: 36.5 | D9: 34.5 | E9: 32.3 | F9: 29.6 | G9: 27.9 | H9: 25.9 | I9: 24.7 | J9: 23.4 | K9: 23.6 | L9: 24
A10: White | B10: 6.9 | C10: 6.7 | D10: 6.5 | E10: 6.2 | F10: 5.6 | G10: 5.3 | H10: 5.1 | I10: 5.2 | J10: 5 | K10: 5.1 | L10: 5.2
A11: Latino | B11: 6.9 | C11: 6.9 | D11: 6.9 | E11: 6.9 | F11: 6.3 | G11: 5.8 | H11: 5.4 | I11: 5.4 | J11: 5.4 | K11: 5.7 | L11: 6
A12: Asian/PI | B12: 1.6 | C12: 1.7 | D12: 1.7 | E12: 1.7 | F12: 1.7 | G12: 1.6 | H12: 1.4 | I12: 1.3 | J12: 1.2 | K12: 1.2 | L12: 1.2
A13: Native American | B13: 21.6 | C13: 22.2 | D13: 24.1 | E13: 23.8 | F13: 21.9 | G13: 19.8 | H13: 20.7 | I13: 21.6 | J13: 21.8 | K13: 22.4 | L13: 21.6
A14: All | B14: 8.3 | C14: 8 | D14: 7.8 | E14: 7.5 | F14: 6.8 | G14: 6.4 | H14: 5.9 | I14: 5.8 | J14: 5.7 | K14: 5.8 | L14: 6
A16: FILTERS:
A17: Statistic: | B17: Prevalence per 1,000 Children
A18: Subgroups: | B18: No restriction on age or gender

Sheet table_logged_disparity
A1: EXTRACT: | B1: ='Slide Descriptions'!A1 -> Q4_14
A2: TITLE | B2: California: Racial Disparity Indices: General Population, 2010 (group compared to White)
A3: NOTES: | B3: To show relative rates / disparity rates, the log of all numbers must be taken, Value lables must be manually entered on the tablein order to reflect the raw disparity numbers (rather than the logged numbers)
B4: Enter the raw numbers into the bottom table; the formulas are in place to create the logged numbers table.
B5: Must create separate tables for each level of system contact
A6: OUTPUT TYPE: | B6: By County and Level of System Contact
A7: SOURCE: | B7: Disparity Indices (http://cssr.berkeley.edu/ucb_childwelfare/DisparityIndices.aspx)
A8: FILTERS: | B8: Age Group: Total (0 to 17 years)
A10: LOGGED NUMBERS | B10: in care | C10: entries | D10: substantiations | E10: allegations
A11: Asian/PI | B11: =LOG(B18) -> -0.6473479805 | C11: =LOG(C18) -> -0.6095792665 | D11: =LOG(D18) -> -0.4764475651 | E11: -0.4340461152
A12: Latino | B12: 0.06243547758 | C12: 0.0609871484 | D12: 0.1108715885 | E12: 0.07129624163
A13: Native American | B13: 0.6186768232 | C13: =LOG(C20) -> 0.5547779644 | D13: 0.4937550211 | E13: 0.3909693219
A14: Black | B14: =LOG(B21) -> 0.6638714807 | C14: 0.5749965902 | D14: 0.5034373868 | E14: =LOG(E21) -> 0.4715734666
A17: RAW NUMBERS | B17: in care | C17: entries | D17: substantiations | E17: allegations
A18: Asian/PI | B18: 0.2252433716 | C18: 0.2457088128 | D18: 0.3338508105 | E18: 0.3680898863
A19: Latino | B19: 1.154610433 | C19: 1.150766335 | D19: 1.290837545 | E19: 1.178409518
A20: Native American | B20: 4.156012291 | C20: 3.587384806 | D20: 3.117130762 | E20: 2.460193813
A21: Black | B21: 4.611810786 | C21: 3.758344534 | D21: 3.187406007 | E21: 2.961920971

Sheet table_logged_disparity_pov
A1: EXTRACT: | B1: ='Slide Descriptions'!A1 -> Q4_14
A2: TITLE | B2: California: Racial Disparity Indices: Poverty Population, 2010 (group compared to White)
A3: NOTES: | B3: To show relative rates / disparity rates, the log of all numbers must be taken, Value lables must be manually entered on the tablein order to reflect the raw disparity numbers (rather than the logged numbers)
B4: Enter the raw numbers into the bottom table; the formulas are in place to create the logged numbers table.
B5: Download the excel spreadsheet from the disparity indices page
B6: Must create separate tables for each level of system contact
A7: OUTPUT TYPE: | B7: By County and Level of System Contact
A8: SOURCE: | B8: Disparity Matrix: California 2010 Data--Estimated Population in Poverty (http://cssr.berkeley.edu/ucb_childwelfare/DisparityIndices.aspx)
A9: FILTERS: | B9: Age Group: Total (0 to 17 years)
A11: LOGGED NUMBERS | B11: in care | C11: entries | D11: substantiations | E11: allegations
A12: Asian/PI | B12: =LOG(B19) -> -0.7428540051 | C12: =LOG(C19) -> -0.7050852911 | D12: =LOG(D19) -> -0.5719535897 | E12: -0.5295521398
A13: Latino | B13: -0.4046783854 | C13: -0.4061267146 | D13: -0.3562422745 | E13: -0.3958176214
A14: Native American | B14: 0.1233804603 | C14: =LOG(C21) -> 0.05948160151 | D14: -0.00154134175 | E14: -0.104327041
A15: Black | B15: =LOG(B22) -> 0.1538424516 | C15: 0.06496756108 | D15: -0.00659164229 | E15: =LOG(E22) -> -0.03845556251
A18: RAW NUMBERS | B18: in care | C18: entries | D18: substantiations | E18: allegations
A19: Asian/PI | B19: 0.1807781738 | C19: 0.197203541 | D19: 0.2679454646 | E19: 0.2954254191
A20: Latino | B20: 0.3938416249 | C20: 0.3925303896 | D20: 0.4403091652 | E20: 0.4019595752
A21: Native American | B21: 1.328557821 | C21: 1.146783938 | D21: 0.99645722 | E21: 0.7864533361
A22: Black | B22: 1.425090522 | C22: 1.161361865 | D22: 0.9849367853 | E22: 0.9152599049

Sheet table_C1.3 perm
A1: EXTRACT: | B1: ='Slide Descriptions'!A1 -> Q4_14
A2: TITLE | B2: California: Percent Exited to Permanency 60 Months from Entry, First Entries to Care, 8+days
A3: NOTES: | B3: Table produced by CWS/CMS website has several time periods not used by this table (3, 18, and 30 months).
A4: OUTPUT TYPE: | B4: Selected Cohort Over time: Single Time Period Selection (California or Individual County)
A5: SOURCE: | B5: C1.3 - selected cohort over time (http://cssr.berkeley.edu/ucb_childwelfare/C1M3.aspx)
A6: FILTERS: | B6: See below
A8: months | B8: In Care | C8: Other | D8: Emancipated | E8: Guardianship | F8: Adopted | G8: Reunified
A9: 6 | B9: 72.8 | C9: 0.6 | D9: 0.3 | E9: 0.6 | F9: 0.1 | G9: 25.6
A10: 12 | B10: 52.4 | C10: 0.8 | D10: 0.8 | E10: 0.8 | F10: 1.1 | G10: 44
A11: 24 | B11: 24.3 | C11: 1.1 | D11: 1.9 | E11: 3.8 | F11: 7.3 | G11: 61.6
A12: 36 | B12: 12.5 | C12: 1.3 | D12: 2.9 | E12: 5.7 | F12: 14.4 | G12: 63.2
A13: 48 | B13: 7.3 | C13: 1.4 | D13: 3.3 | E13: 6.2 | F13: 18 | G13: 63.8
A14: 60 | B14: 5 | C14: 1.5 | D14: 3.7 | E14: 6.5 | F14: 19.2 | G14: 64.1
A17: Full Cohort Count | B17: 10835
A19: FILTERS:
A20: Time Period: | B20: Jul 1, 2009 to Dec 31, 2009
A21: Days in Care: | B21: 8 Days or More
A22: Episode Count: | B22: First Entry
A23: Table Output in: | B23: Percent
A24: Subgroups: | B24: No Restrictions

Sheet table_C1.3 perm_race
A1: EXTRACT: | B1: ='Slide Descriptions'!A1 -> Q4_14
A2: TITLE | B2: California: Percent Exited to Permanency 60 Months from Entry, First Entries to Care, 8+days
A3: NOTES: | B3: Table produced by CWS/CMS website has several time periods not used by this table (3, 18, and 30 months).
A4: OUTPUT TYPE: | B4: Selected Cohort Over time: Single Time Period Selection (California or Individual County)
A5: SOURCE: | B5: C1.3 - selected cohort over time (http://cssr.berkeley.edu/ucb_childwelfare/C1M3.aspx)
A6: FILTERS: | B6: See below
A8: white | B8: In Care | C8: Other | D8: Emancipated | E8: Guardianship | F8: Adopted | G8: Reunified
A9: 3 | B9: 82.8 | C9: 0.6 | D9: 0.1 | E9: 0.4 | F9: 0.1 | G9: 15.9
A10: 6 | B10: 73.5 | C10: 0.9 | D10: 0.4 | E10: 0.8 | F10: 0.2 | G10: 24.2
A11: 12 | B11: 49.6 | C11: 1.2 | D11: 1.1 | E11: 1 | F11: 1.8 | G11: 45.3
A12: 24 | B12: 22.4 | C12: 1.6 | D12: 2.1 | E12: 3.3 | F12: 10.1 | G12: 60.5
A13: 36 | B13: 11.1 | C13: 1.7 | D13: 2.9 | E13: 3.9 | F13: 18.8 | G13: 61.6
A14: 48 | B14: 6.1 | C14: 1.7 | D14: 3.5 | E14: 4 | F14: 22.8 | G14: 62
A15: 60 | B15: 4.2 | C15: 1.8 | D15: 3.7 | E15: 4.2 | F15: 24 | G15: 62.1
A17: 3 | B17: 81.8 | C17: 0.4 | D17: 0.2 | E17: 0.8 | F17: 0 | G17: 16.7
A18: 6 | B18: 72.8 | C18: 0.7 | D18: 0.3 | E18: 1.1 | F18: 0.1 | G18: 24.9
A19: 12 | B19: 56 | C19: 0.9 | D19: 0.8 | E19: 1.4 | F19: 0.9 | G19: 39.9
A20: 24 | B20: 29.8 | C20: 1.4 | D20: 2.3 | E20: 5.5 | F20: 5.6 | G20: 55.3
A21: 36 | B21: 16.6 | C21: 1.6 | D21: 3.3 | E21: 9.8 | F21: 11.4 | G21: 57.3
A22: 48 | B22: 10.7 | C22: 1.8 | D22: 3.8 | E22: 10.7 | F22: 15 | G22: 57.9
A23: 60 | B23: 7.8 | C23: 2.1 | D23: 4.4 | E23: 11.1 | F23: 16.4 | G23: 58.1
A24: black | B24: In Care | C24: Other | D24: Emancipated | E24: Guardianship | F24: Adopted | G24: Reunified
A26: Black Cohort Count | B26: 2004 | C26: =A24 & " (n=" & TEXT(B26,"#,##0") & ")" -> black (n=2,004)
A27: White Cohort Count | B27: 2774 | C27: =A8& " (n=" & TEXT(B27,"#,##0") & ")" -> white (n=2,774)
A29: FILTERS:
A30: Time Period: | B30: ='table_C1.3 perm'!B20 -> Jul 1, 2009 to Dec 31, 2009
A31: Days in Care: | B31: 8 Days or More
A32: Episode Count: | B32: First Entry
A33: Table Output in: | B33: Percent
A34: Subgroups: | B34: No restrictions on age, gender, first placement type, first caregiver relationship, last placement type, last caregiver relationship, and removal reason
B35: For Black tables, check black as the ethnic group
B36: For White tables, check white as the ethnic group

Sheet table_C1.3 perm_raceplctype
A1: EXTRACT: | B1: ='Slide Descriptions'!A1 -> Q4_14
A2: TITLE | B2: California: Percent Exited to Permanency 60 Months from Entry, First Entries to Care, 8+days
A3: NOTES: | B3: Table produced by CWS/CMS website has several time periods not used by this table (3, 18, and 30 months).
B4: Table produced by CWS/CMS website has several time periods not used by this table (3, 18, and 30 months).
A5: OUTPUT TYPE: | B5: Selected Cohort Over time: Single Time Period Selection (California or Individual County)
A6: SOURCE: | B6: C1.3 - selected cohort over time (http://cssr.berkeley.edu/ucb_childwelfare/C1M3.aspx)
A7: FILTERS: | B7: See below
A9: white, relative placements | B9: 1022 | C9: =A9 & " (n=" & TEXT(B9,"#,##0") & ")" -> white, relative placements (n=1,022) | I9: black, relative placements | J9: 758 | K9: =I9 & " (n=" & TEXT(J9,"#,##0") & ")" -> black, relative placements (n=758)
A10: WHITE w/KIN | B10: In Care | C10: Other | D10: Emancipated | E10: Guardianship | F10: Adopted | G10: Reunified | I10: BLACK w/KIN | J10: In Care | K10: Other | L10: Emancipated | M10: Guardianship | N10: Adopted | O10: Reunified
A11: 12 | B11: 50.3 | C11: 0.3 | D11: 0.7 | E11: 2 | F11: 0.4 | G11: 46.4 | I11: 12 | J11: 63.6 | K11: 0.4 | L11: 0.4 | M11: 1.5 | N11: 0.7 | O11: 33.5
A12: 24 | B12: 20.2 | C12: 0.5 | D12: 1.3 | E12: 6.8 | F12: 7.7 | G12: 63.6 | I12: 24 | J12: 32.8 | K12: 0.8 | L12: 1.1 | M12: 9.8 | N12: 4.1 | O12: 51.5
A13: 36 | B13: 7.3 | C13: 0.5 | D13: 1.4 | E13: 8.1 | F13: 17.9 | G13: 64.8 | I13: 36 | J13: 15 | K13: 0.9 | L13: 1.8 | M13: 17.7 | N13: 11.1 | O13: 53.4
A14: 48 | B14: 3.7 | C14: 0.5 | D14: 1.4 | E14: 8.1 | F14: 21.3 | G14: 65 | I14: 48 | J14: 7.5 | K14: 0.9 | L14: 2 | M14: 19.8 | N14: 16 | O14: 53.8
A15: 60 | B15: 1.7 | C15: 0.6 | D15: 1.4 | E15: 8.7 | F15: 22.6 | G15: 65.1 | I15: 60 | J15: 4.7 | K15: 1.1 | L15: 2 | M15: 20.8 | N15: 17.5 | O15: 53.8
A16: white, non-relative placements | B16: 1730 | C16: =A16 & " (n=" & TEXT(B16,"#,##0") & ")" -> white, non-relative placements (n=1,730) | I16: black, non-relative placements | J16: 1214 | K16: =I16 & " (n=" & TEXT(J16,"#,##0") & ")" -> black, non-relative placements (n=1,214)
A17: White w/NONKIN | B17: In Care | C17: Other | D17: Emancipated | E17: Guardianship | F17: Adopted | G17: Reunified | I17: BLACK w/NONKIN | J17: In Care | K17: Other | L17: Emancipated | M17: Guardianship | N17: Adopted | O17: Reunified
A18: 12 | B18: 48.6 | C18: 1.7 | D18: 1.3 | E18: 0.5 | F18: 2.7 | G18: 45.3 | I18: 12 | J18: 50.1 | K18: 1.3 | L18: 1.1 | M18: 1.4 | N18: 1.2 | O18: 45
A19: 24 | B19: 22.8 | C19: 2.3 | D19: 2.6 | E19: 1.3 | F19: 11.6 | G19: 59.5 | I19: 24 | J19: 26.1 | K19: 1.8 | L19: 3.1 | M19: 3 | N19: 6.8 | O19: 59.1
A20: 36 | B20: 12.1 | C20: 2.5 | D20: 3.9 | E20: 1.4 | F20: 19.6 | G20: 60.5 | I20: 36 | J20: 15.4 | K20: 2 | L20: 4.3 | M20: 5.1 | N20: 11.9 | O20: 61.3
A21: 48 | B21: 6.4 | C21: 2.5 | D21: 4.7 | E21: 1.6 | F21: 23.9 | G21: 60.9 | I21: 48 | J21: 10.5 | K21: 2.4 | L21: 5 | M21: 5.3 | N21: 14.8 | O21: 61.9
A22: 60 | B22: 4.6 | C22: 2.5 | D22: 5 | E22: 1.6 | F22: 25.1 | G22: 61.1 | I22: 60 | J22: 8.4 | K22: 2.5 | L22: 5.3 | M22: 5.4 | N22: 16.1 | O22: 62.4
A24: FILTERS:
A25: Time Period: | B25: ='table_C1.3 perm'!B20 -> Jul 1, 2009 to Dec 31, 2009
A26: Days in Care: | B26: 8 Days or More
A27: Episode Count: | B27: First Entry
A28: Table Output in: | B28: Percent
A29: Subgroups: | B29: No restrictions on age, gender, first placement type, first caregiver relationship, last placement type, and removal reason
B30: For Kin Tables, check subgroup "Last Caregiver Relationship: Relative Guardian; Relative NonGuardian"
B31: For NonKin tables, check subgroup "Last Caregiver Relationship: Nonrelative Guardian; Nonrelative Nonguardian"
B32: For Black tables, check black as the ethnic group
B33: For White tables, check white as the ethnic group

Sheet table_servcomponents
A1: EXTRACT: | B1: ='Slide Descriptions'!A1 -> Q4_14
A2: TITLE | B2: California: Caseload Case Service Components by Race/Ethnicity (missing values and other race excluded from % calculations, children of all ages included)
A3: NOTES: | B3: Must populate caseload size numbers from raw data
B4: In order to calculate percentages, divide race count by (total-missing)*100
B5: Sample Formula: Black Total Caseload/(Total Caseload-Missing Total Caseload)*100
B6: SUM CHECK ensures that the missing have been subtracted out; all of the rows should add up to 100.
B7: Must manually change numbers in parentheses
A8: OUTPUT TYPE: | B8: Single Time Period (California or Individual County)
A9: SOURCE: | B9: Foster Care: Point in Time/Case Service Components (http://cssr.berkeley.edu/ucb_childwelfare/CaseServiceComponents.aspx)
A10: FILTERS: | B10: See below
B12: Black | C12: White | D12: Latino | E12: Asian/PI | F12: Native American | G12: SUM CHECK
A13: Total Caseload (94,316) | B13: 20.34393424 | C13: 21.83865156 | D13: 54.06569506 | E13: 2.503278356 | F13: 1.248440782 | G13: =SUM(B13:F13) -> 100
A14: Emergency Response (3,726) | B14: 18.28587381 | C14: 22.72473479 | D14: 54.29927415 | E14: 2.540480179 | F14: 2.149637074 | G14: 100
A15: No Placement Family Maintenance (16,707) | B15: 15.02715751 | C15: 15.89016295 | D15: 64.66505733 | E15: 3.524441762 | F15: 0.8931804466 | G15: 100
A16: Post-Placement Family Maintenance (8,702) | B16: 16.14871087 | C16: 21.99585635 | D16: 58.83977901 | E16: 2.428637201 | F16: 0.5870165746 | G16: 100
A17: Family Reunification (27,776) | B17: 18.73554078 | C17: 22.20575477 | D17: 55.85237131 | E17: 2.038750723 | F17: 1.167582418 | G17: 100
A18: Permanent Placement (30,806) | B18: 24.20888136 | C18: 24.08191171 | D18: 47.91639536 | E18: 2.194296132 | F18: 1.598515432 | G18: 100
A19: Supportive Transition (6,599) | B19: 29.11661852 | C19: 24.11433784 | D19: 42.13167097 | E19: 3.405808119 | F19: 1.231564543 | G19: =SUM(B19:F19) -> 100
A21: Caseload N | B21: 94316
A22: ER N | B22: 3726
A23: No Placement FM N | B23: 16707
A24: Post Placement FM N | B24: 8702
A25: FR N | B25: 27776
A26: Perm Place N | B26: 30806
A27: Supp Trans N | B27: 6599
A29: FILTERS:
A30: Time Period | B30: 2015-01-01
A31: View Service Component Types As: | B31: Column Dimension
A32: Table Out: | B32: Count
A33: Row Dimension: | B33: Ethnic Group
A34: Subgroups: | B34: No Restrictions

Sheet table_servcomponents_time
A1: EXTRACT: | B1: ='Slide Descriptions'!A1 -> Q4_14
A2: TITLE | B2: California: Caseload Case Service Components: 2000-2013, children of all ages included)
A3: NOTES: | B3: Supportive Transition excluded from table
A4: OUTPUT TYPE: | B4: Multiple Time Periods Summary (California and All Counties)
A5: SOURCE: | B5: Foster Care: Point in Time/Case Service Components (http://cssr.berkeley.edu/ucb_childwelfare/CaseServiceComponents.aspx)
A6: FILTERS: | B6: See below
B8: 2005 | F8: 2006 | J8: 2007 | N8: 2008 | R8: 2009 | V8: 2010 | Z8: 2011 | AD8: 2012 | AH8: 2013 | AL8: 2014 | AP8: 2015
A9: Emergency Response | B9: 4234 | C9: 4815 | D9: 4458 | E9: 4759 | F9: 4565 | G9: 4679 | H9: 4471 | I9: 4743 | J9: 4163 | K9: 4743 | L9: 4200 | M9: 4450 | N9: 3800 | O9: 3652 | P9: 3639 | Q9: 3694 | R9: 3224 | S9: 3421 | T9: 3319 | U9: 3874 | V9: 4031 | W9: 4501 | X9: 4554 | Y9: 4591 | Z9: 4199 | AA9: 4486 | AB9: 4022 | AC9: 4040 | AD9: 3913 | AE9: 4392 | AF9: 4220 | AG9: 4394 | AH9: 4189 | AI9: 4323 | AJ9: 4347 | AK9: 4475 | AL9: 4348 | AM9: 4579 | AN9: 4736 | AO9: 4657 | AP9: 3726
A10: No Placement FM | B10: 17101 | C10: 17977 | D10: 18576 | E10: 18063 | F10: 18031 | G10: 18239 | H10: 17966 | I10: 17774 | J10: 18606 | K10: 18868 | L10: 18766 | M10: 18232 | N10: 18549 | O10: 18782 | P10: 17547 | Q10: 16397 | R10: 16318 | S10: 15994 | T10: 15878 | U10: 15080 | V10: 15151 | W10: 15427 | X10: 15848 | Y10: 16297 | Z10: 17120 | AA10: 17946 | AB10: 18540 | AC10: 18436 | AD10: 18374 | AE10: 18164 | AF10: 18464 | AG10: 18402 | AH10: 18156 | AI10: 18017 | AJ10: 17924 | AK10: 17718 | AL10: 17765 | AM10: 17752 | AN10: 17249 | AO10: 16828 | AP10: 16707
A11: Post-Placement FM | B11: 11217 | C11: 10783 | D11: 10823 | E11: 10859 | F11: 10949 | G11: 10917 | H11: 10913 | I11: 11405 | J11: 11748 | K11: 11696 | L11: 11997 | M11: 12460 | N11: 12510 | O11: 12319 | P11: 12447 | Q11: 12404 | R11: 11980 | S11: 11769 | T11: 11252 | U11: 11160 | V11: 10962 | W11: 10560 | X11: 10263 | Y11: 10146 | Z11: 9820 | AA11: 9895 | AB11: 10185 | AC11: 10370 | AD11: 10243 | AE11: 9991 | AF11: 9821 | AG11: 9718 | AH11: 9321 | AI11: 9181 | AJ11: 9042 | AK11: 9285 | AL11: 9377 | AM11: 9417 | AN11: 9454 | AO11: 9402 | AP11: 8702
A12: Family Reunification | B12: 24772 | C12: 25458 | D12: 25756 | E12: 26136 | F12: 25869 | G12: 26127 | H12: 26204 | I12: 25820 | J12: 26265 | K12: 26415 | L12: 26973 | M12: 26711 | N12: 26061 | O12: 25018 | P12: 24054 | Q12: 23585 | R12: 23178 | S12: 22910 | T12: 22753 | U12: 22767 | V12: 22579 | W12: 22057 | X12: 22274 | Y12: 22774 | Z12: 23230 | AA12: 23148 | AB12: 23120 | AC12: 23007 | AD12: 22651 | AE12: 22435 | AF12: 22810 | AG12: 22963 | AH12: 23525 | AI12: 23821 | AJ12: 24841 | AK12: 25553 | AL12: 25940 | AM12: 25504 | AN12: 25997 | AO12: 26793 | AP12: 27776
A13: Permanent Placement | B13: 65321 | C13: 64845 | D13: 64623 | E13: 63672 | F13: 63399 | G13: 62244 | H13: 60387 | I13: 55897 | J13: 53670 | K13: 52995 | L13: 51650 | M13: 50353 | N13: 48887 | O13: 48466 | P13: 47284 | Q13: 45568 | R13: 44159 | S13: 43662 | T13: 42448 | U13: 40916 | V13: 39595 | W13: 39121 | X13: 38222 | Y13: 37097 | Z13: 36402 | AA13: 36123 | AB13: 35514 | AC13: 34380 | AD13: 32917 | AE13: 32550 | AF13: 31757 | AG13: 31065 | AH13: 30521 | AI13: 30615 | AJ13: 30384 | AK13: 30299 | AL13: 30254 | AM13: 31082 | AN13: 31211 | AO13: 31072 | AP13: 30806
A16: FILTERS:
A17: Table Out: | B17: Count
A18: Point in Time: | B18: All
A19: Subgroups: | B19: No Restrictions

Sheet table_plcmt_dist
A1: EXTRACT: | B1: ='Slide Descriptions'!A1 -> Q4_14
A2: TITLE | B2: California: Children Still in Care 12m After Entry, Placement Distance from Home by Kin vs. Non-Kin (missing values excluded from % calculations)
A3: NOTES: | B3: Note: Because of rounding, some totals do not add up to 100 - so slight changes were made to reflect a perfect sum; download data into Datadude tool
B4: SUM CHECK ensures that all of the rows add up to 100.
A5: SOURCE: | B5: Distances (http://cssr.berkeley.edu/ucb_childwelfare/Distances.aspx)
A6: FILTERS: | B6: N/A
B8: 2004 | C8: 2005 | D8: 2006 | E8: 2007 | F8: 2008 | G8: 2009 | H8: 2010 | I8: 2011 | J8: 2012 | K8: 2013
A9: With Kin, <5 mile | B9: 57.1 | C9: 60.4 | D9: 59.5 | E9: 62.3 | F9: 61.1 | G9: 61.8 | H9: 61.2 | I9: 60.7 | J9: 61.3 | K9: 61.1
A10: With Kin, 11+ miles | B10: 31.3 | C10: 28.8 | D10: 29.3 | E10: 27.3 | F10: 28.6 | G10: 28.7 | H10: 28.1 | I10: 27.8 | J10: 28.3 | K10: 28.3
A11: Not with Kin, <5 mile | B11: 36.2 | C11: 37.9 | D11: 38.2 | E11: 38.9 | F11: 39.4 | G11: 42.2 | H11: 43.4 | I11: 39.6 | J11: 39.4 | K11: 38.3
A12: Not with Kin, 11+ miles | B12: 45.3 | C12: 44.6 | D12: 43.3 | E12: 44.1 | F12: 44.1 | G12: 42.4 | H12: 38.9 | I12: 42.2 | J12: 43.3 | K12: 44.8

Sheet table_siblings
A1: EXTRACT: | B1: ='Slide Descriptions'!A1 -> Q4_14
A2: TITLE | B2: California: Placement with All or Some Siblings
A3: NOTES: | B3: Use Datadude tool
A4: OUTPUT TYPE: | B4: Summary Tables
A5: SOURCE: | B5: Sibling Report (http://cssr.berkeley.edu/ucb_childwelfare/siblings.aspx)
A6: FILTERS: | B6: N/A. Datadude Tool.
B8: 2005 | F8: 2006 | J8: 2007 | N8: 2008 | R8: 2009 | V8: 2010 | Z8: 2011 | AD8: 2012 | AH8: 2013 | AL8: 2014 | AP8: 2015
A9: Placement with All Siblings | B9: 42 | C9: 41.8 | D9: 42.1 | E9: 42.8 | F9: 43.2 | G9: 43 | H9: 43.5 | I9: 43.6 | J9: 44.6 | K9: 44.6 | L9: 45.3 | M9: 46 | N9: 46.1 | O9: 46.4 | P9: 46.7 | Q9: 47.2 | R9: 47.7 | S9: 48 | T9: 48.9 | U9: 49.4 | V9: 50.3 | W9: 50.5 | X9: 50.9 | Y9: 51.3 | Z9: 51.8 | AA9: 52.1 | AB9: 52.8 | AC9: 53.5 | AD9: 53.5 | AE9: 53.3 | AF9: 53.8 | AG9: 54.4 | AH9: 54.3 | AI9: 54.5 | AJ9: 54.5 | AK9: 55.1 | AL9: 55.2 | AM9: 55.3 | AN9: 54.4 | AO9: 54.4 | AP9: 53.8
A10: Placement with All or Some Siblings | B10: 66.1 | C10: 66.1 | D10: 66.1 | E10: 66.5 | F10: 66.6 | G10: 66.4 | H10: 66.4 | I10: 66.8 | J10: 67.1 | K10: 67.4 | L10: 67.8 | M10: 68.3 | N10: 68.3 | O10: 68.5 | P10: 68.5 | Q10: 69 | R10: 69.3 | S10: 69.6 | T10: 70.1 | U10: 70.6 | V10: 71 | W10: 71.1 | X10: 71.4 | Y10: 71.9 | Z10: 72 | AA10: 72.2 | AB10: 72.7 | AC10: 73.2 | AD10: 73.3 | AE10: 72.9 | AF10: 73.2 | AG10: 73.6 | AH10: 73.4 | AI10: 73.4 | AJ10: 73.7 | AK10: 74.2 | AL10: 74.2 | AM10: 74.2 | AN10: 73.7 | AO10: 73.5 | AP10: 73.3

Sheet table_recurrence
A1: EXTRACT: | B1: ='Slide Descriptions'!A1 -> Q4_14
A2: TITLE | B2: California: Recurrence of Allegations Over 24 Months, by base and follow-up disposition type
A3: NOTES: | B3: Must manually update base period in title, manually enter base numbers in text boxes; base numbers are obtained same as percents; simply change output count; reformatted table is linked to cells in raw table, so does not need to be changed
A4: OUTPUT TYPE: | B4: Selected Base Period Over Time: Single Time Period (California or Individual County)
A5: SOURCE: | B5: Recurrence tables (http://cssr.berkeley.edu/ucb_childwelfare/RecurAlleg.aspx)
A6: FILTERS: | B6: See below
A8: RAW TABLE
A9: Base Disp | B9: Recur 6 mos. Disposition | H9: Recur 12 mos. Disposition | N9: Recur 18 mos. Disposition | T9: Recur 24 mos. Disposition
B10: S | C10: I | D10: U | E10: A | F10: N | H10: S | I10: I | J10: U | K10: A | L10: N | N10: S | O10: I | P10: U | Q10: A | R10: N | T10: S | U10: I | V10: U | W10: A | X10: N
B11: 6m | C11: 6m | D11: 6m | E11: 6m | F11: 6m | H11: 12m | I11: 12m | J11: 12m | K11: 12m | L11: 12m | N11: 18m | O11: 18m | P11: 18m | Q11: 18m | R11: 18m | T11: 24m | U11: 24m | V11: 24m | W11: 24m | X11: 24m
A12: S | B12: 6.5 | C12: 3.7 | D12: 6.2 | E12: 7.6 | F12: 76 | H12: 10.3 | I12: 6.1 | J12: 9.6 | K12: 8.5 | L12: 65.5 | N12: 12.9 | O12: 7.8 | P12: 11.7 | Q12: 8.6 | R12: 59 | T12: 15 | U12: 9 | V12: 12.9 | W12: 8.8 | X12: 54.2
A13: I | B13: 5.5 | C13: 6.5 | D13: 6.3 | E13: 6.1 | F13: 75.6 | H13: 9.4 | I13: 9.6 | J13: 9.1 | K13: 6.6 | L13: 65.3 | N13: 12.1 | O13: 11.3 | P13: 10.7 | Q13: 6.8 | R13: 59.1 | T13: 14.2 | U13: 12.7 | V13: 11.3 | W13: 7.1 | X13: 54.7
A14: U | B14: 3.2 | C14: 3.2 | D14: 8.5 | E14: 5.4 | F14: 79.7 | H14: 5.9 | I14: 5.5 | J14: 12.4 | K14: 6.2 | L14: 69.9 | N14: 7.8 | O14: 7.3 | P14: 14.5 | Q14: 6.6 | R14: 63.8 | T14: 9.4 | U14: 8.6 | V14: 15.7 | W14: 7 | X14: 59.3
A15: A | B15: 4 | C15: 4.2 | D15: 8.3 | E15: 9 | F15: 74.6 | H15: 6.2 | I15: 6 | J15: 10.9 | K15: 10.5 | L15: 66.4 | N15: 7.8 | O15: 7.4 | P15: 12.3 | Q15: 11.1 | R15: 61.4 | T15: 9.1 | U15: 8.4 | V15: 13.1 | W15: 11.4 | X15: 58.1
A17: REFORMATTED TABLE | B17: substantiated | G17: inconclusive | L17: unfounded | Q17: assessment only
B18: 6m | C18: 12m | D18: 18m | E18: 24m | G18: 6m | H18: 12m | I18: 18m | J18: 24m | L18: 6m | M18: 12m | N18: 18m | O18: 24m | Q18: 6m | R18: 12m | S18: 18m | T18: 24m
A19: substantiated | B19: =$B$12 -> 6.5 | C19: =$H$12 -> 10.3 | D19: =$N$12 -> 12.9 | E19: =$T$12 -> 15 | G19: =$B$13 -> 5.5 | H19: =$H$13 -> 9.4 | I19: =$N$13 -> 12.1 | J19: =$T$13 -> 14.2 | L19: =$B$14 -> 3.2 | M19: =$H$14 -> 5.9 | N19: =$N$14 -> 7.8 | O19: =$T$14 -> 9.4 | Q19: =$B$15 -> 4 | R19: =$H$15 -> 6.2 | S19: =$N$15 -> 7.8 | T19: =$T$15 -> 9.1
A20: inconclusive | B20: =$C$12 -> 3.7 | C20: =$I$12 -> 6.1 | D20: =$O$12 -> 7.8 | E20: =$U$12 -> 9 | G20: =$C$13 -> 6.5 | H20: =$I$13 -> 9.6 | I20: =$O$13 -> 11.3 | J20: =$U$13 -> 12.7 | L20: =$C$14 -> 3.2 | M20: =$I$14 -> 5.5 | N20: =$O$14 -> 7.3 | O20: =$U$14 -> 8.6 | Q20: =$C$15 -> 4.2 | R20: =$I$15 -> 6 | S20: =$O$15 -> 7.4 | T20: =$U$15 -> 8.4
A21: unsubstantiated | B21: =$D$12 -> 6.2 | C21: =$J$12 -> 9.6 | D21: =$P$12 -> 11.7 | E21: =$V$12 -> 12.9 | G21: =$D$13 -> 6.3 | H21: =$J$13 -> 9.1 | I21: =$P$13 -> 10.7 | J21: =$V$13 -> 11.3 | L21: =$D$14 -> 8.5 | M21: =$J$14 -> 12.4 | N21: =$P$14 -> 14.5 | O21: =$V$14 -> 15.7 | Q21: =$D$15 -> 8.3 | R21: =$J$15 -> 10.9 | S21: =$P$15 -> 12.3 | T21: =$V$15 -> 13.1
A22: assessment only | B22: =$E$12 -> 7.6 | C22: =$K$12 -> 8.5 | D22: =$Q$12 -> 8.6 | E22: =$W$12 -> 8.8 | G22: =$E$13 -> 6.1 | H22: =$K$13 -> 6.6 | I22: =$Q$13 -> 6.8 | J22: =$W$13 -> 7.1 | L22: =$E$14 -> 5.4 | M22: =$K$14 -> 6.2 | N22: =$Q$14 -> 6.6 | O22: =$W$14 -> 7 | Q22: =$E$15 -> 9 | R22: =$K$15 -> 10.5 | S22: =$Q$15 -> 11.1 | T22: =$W$15 -> 11.4
A24: Base Counts
A25: S | B25: 34503
A26: I | B26: 40089
A27: U | B27: 90920
A28: A | B28: 62554
A30: FILTERS:
A31: Exclude At Risk, Sibling Abused and Substantial Risk Allegations as excluded in the Federal CFSR Measure S1.1: | L31: Exclude
A32: Apply Restriction on Disposition Dates as applied in the Federal CFSR Measure S1.1*: | L32: Do Not Apply
A33: Limit Report to First Allegation**: | L33: No
A34: Limit Report to Children Not Removed from Home***: | L34: No
A35: Time Period: | L35: July 1, 2012 - December 31, 2012
A36: Table Output in: | L36: Percent (Also need to access count data in order to obtain data for "Base Counts" table)

Sheet table_perm_raw
A1: EXTRACT: | B1: ='Slide Descriptions'!A1 -> Q4_14
A2: TITLE | B2: California: Exits to permanency over time, by placement type
A3: NOTES: | B3: Data needs to be reverse-sorted once it is obtained; first entries into care; 8+ days in care; limited to 120 months (10 years) in care
A4: SOURCE: | B4: C1.3 - Exit Status at Most Recent Available Follow-up Period (http://cssr.berkeley.edu/ucb_childwelfare/C1M3.aspx)
A5: FILTERS: | B5: Data below have been reverse sorted by row 8
A7: California
B8: 43 | C8: 42 | D8: 41 | E8: 40 | F8: 39 | G8: 38 | H8: 37 | I8: 36 | J8: 35 | K8: 34 | L8: 33 | M8: 32 | N8: 31 | O8: 30 | P8: 29 | Q8: 28 | R8: 27 | S8: 26 | T8: 25 | U8: 24 | V8: 23 | W8: 22 | X8: 21 | Y8: 20 | Z8: 19 | AA8: 18 | AB8: 17 | AC8: 16 | AD8: 15 | AE8: 14 | AF8: 13 | AG8: 12 | AH8: 11 | AI8: 10 | AJ8: 9 | AK8: 8 | AL8: 7 | AM8: 6 | AN8: 5 | AO8: 4 | AP8: 3 | AQ8: 2 | AR8: 1
A10: Interval | B10: JAN2014-JUN2014 | C10: JAN2014-JUN2014 | D10: OCT2013-MAR2014 | E10: JUL2013-DEC2013 | F10: APR2013-SEP2013 | G10: JAN2013-JUN2013 | H10: OCT2012-MAR2013 | I10: JUL2012-DEC2012 | J10: APR2012-SEP2012 | K10: JAN2012-JUN2012 | L10: OCT2011-MAR2012 | M10: JUL2011-DEC2011 | N10: APR2011-SEP2011 | O10: JAN2011-JUN2011 | P10: OCT2010-MAR2011 | Q10: JUL2010-DEC2010 | R10: APR2010-SEP2010 | S10: JAN2010-JUN2010 | T10: OCT2009-MAR2010 | U10: JUL2009-DEC2009 | V10: APR2009-SEP2009 | W10: JAN2009-JUN2009 | X10: OCT2008-MAR2009 | Y10: JUL2008-DEC2008 | Z10: APR2008-SEP2008 | AA10: JAN2008-JUN2008 | AB10: OCT2007-MAR2008 | AC10: JUL2007-DEC2007 | AD10: APR2007-SEP2007 | AE10: JAN2007-JUN2007 | AF10: OCT2006-MAR2007 | AG10: JUL2006-DEC2006 | AH10: APR2006-SEP2006 | AI10: JAN2006-JUN2006 | AJ10: OCT2005-MAR2006 | AK10: JUL2005-DEC2005 | AL10: APR2005-SEP2005 | AM10: JAN2005-JUN2005 | AN10: OCT2004-MAR2005 | AO10: JUL2004-DEC2004 | AP10: APR2004-SEP2004 | AQ10: JAN2004-JUN2004 | AR10: OCT2003-MAR2004
B11: 3 months | C11: 6 months | D11: 6 months | E11: 12 months | F11: 12 months | G11: 18 months | H11: 18 months | I11: 24 months | J11: 24 months | K11: 30 months | L11: 30 months | M11: 36 months | N11: 36 months | O11: 36 months | P11: 36 months | Q11: 48 months | R11: 48 months | S11: 48 months | T11: 48 months | U11: 60 months | V11: 60 months | W11: 60 months | X11: 60 months | Y11: 72 months | Z11: 72 months | AA11: 72 months | AB11: 72 months | AC11: 84 months | AD11: 84 months | AE11: 84 months | AF11: 84 months | AG11: 96 months | AH11: 96 months | AI11: 96 months | AJ11: 96 months | AK11: 108 months | AL11: 108 months | AM11: 108 months | AN11: 108 months | AO11: 120 months | AP11: 120 months | AQ11: 120 months | AR11: 120 months
D12: % | E12: % | F12: % | G12: % | H12: % | I12: % | J12: % | K12: % | L12: % | M12: % | N12: % | O12: % | P12: % | Q12: % | R12: % | S12: % | T12: % | U12: % | V12: % | W12: % | X12: % | Y12: % | Z12: % | AA12: % | AB12: % | AC12: % | AD12: % | AE12: % | AF12: % | AG12: % | AH12: % | AI12: % | AJ12: % | AK12: % | AL12: % | AM12: % | AN12: % | AO12: % | AP12: % | AQ12: % | AR12: %
A13: PERCENT
A14: Reunified | B14: 12 | C14: 18.8 | D14: 19.9 | E14: 35.5 | F14: 35.4 | G14: 47.5 | H14: 49.1 | I14: 53.8 | J14: 54.6 | K14: 56.5 | L14: 56.5 | M14: 57.7 | N14: 58.6 | O14: 61 | P14: 61.3 | Q14: 60.4 | R14: 60.9 | S14: 61.9 | T14: 63.2 | U14: 64.1 | V14: 63.8 | W14: 63.5 | X14: 63.1 | Y14: 63.3 | Z14: 63.8 | AA14: 64.6 | AB14: 64.1 | AC14: 63.9 | AD14: 64.3 | AE14: 64.5 | AF14: 63.4 | AG14: 60.8 | AH14: 60.6 | AI14: 61 | AJ14: 60 | AK14: 58.5 | AL14: 58.2 | AM14: 58.8 | AN14: 57.4 | AO14: 57 | AP14: 58 | AQ14: 58.6 | AR14: 58.2
A15: Adopted | B15: 0 | C15: 0 | D15: . | E15: 1.1 | F15: 0.9 | G15: 4 | H15: 3.9 | I15: 8.4 | J15: 8.1 | K15: 12.9 | L15: 12.8 | M15: 16.9 | N15: 16.3 | O15: 14.8 | P15: 15 | Q15: 19.6 | R15: 19.6 | S15: 18.9 | T15: 18.1 | U15: 19.2 | V15: 19.3 | W15: 19.5 | X15: 20.1 | Y15: 20.3 | Z15: 19 | AA15: 18 | AB15: 18.8 | AC15: 19.8 | AD15: 19.9 | AE15: 20 | AF15: 21 | AG15: 22.5 | AH15: 23.1 | AI15: 23.1 | AJ15: 24.3 | AK15: 25.9 | AL15: 25.4 | AM15: 24.2 | AN15: 25 | AO15: 25.6 | AP15: 24.5 | AQ15: 23.7 | AR15: 23.9
A16: Guardianship | B16: 0.1 | C16: 0.2 | D16: 0.3 | E16: 1.1 | F16: 1.2 | G16: 3.2 | H16: 2.9 | I16: 5.7 | J16: 5.7 | K16: 7.1 | L16: 7.3 | M16: 7.9 | N16: 7.2 | O16: 6.7 | P16: 7 | Q16: 7.7 | R16: 7.4 | S16: 7.4 | T16: 6.7 | U16: 6.5 | V16: 6.8 | W16: 6.6 | X16: 6 | Y16: 6.5 | Z16: 6.8 | AA16: 6.6 | AB16: 6.7 | AC16: 6.9 | AD16: 6.8 | AE16: 6.6 | AF16: 6.4 | AG16: 7.2 | AH16: 7.1 | AI16: 6.5 | AJ16: 6.2 | AK16: 6.1 | AL16: 6.5 | AM16: 6.9 | AN16: 7.6 | AO16: 7.4 | AP16: 6.9 | AQ16: 6.9 | AR16: 6.6
A17: Emancipated | B17: 0.1 | C17: 0.2 | D17: 0.2 | E17: 0.3 | F17: 0.4 | G17: 0.7 | H17: 0.8 | I17: 0.9 | J17: 0.8 | K17: 1.2 | L17: 1.3 | M17: 1.3 | N17: 1.5 | O17: 1.7 | P17: 1.8 | Q17: 2.4 | R17: 2.9 | S17: 3.1 | T17: 3.2 | U17: 3.7 | V17: 3.7 | W17: 4.1 | X17: 4.7 | Y17: 4.9 | Z17: 4.6 | AA17: 4.8 | AB17: 5.1 | AC17: 5.1 | AD17: 4.8 | AE17: 4.8 | AF17: 4.7 | AG17: 5.3 | AH17: 5.1 | AI17: 5.2 | AJ17: 5.4 | AK17: 5.4 | AL17: 5.3 | AM17: 5.7 | AN17: 5.8 | AO17: 5.7 | AP17: 5.9 | AQ17: 5.9 | AR17: 6.5
A18: Other | B18: 0.3 | C18: 0.6 | D18: 0.5 | E18: 0.7 | F18: 0.8 | G18: 0.9 | H18: 0.8 | I18: 1 | J18: 0.9 | K18: 1.1 | L18: 1.1 | M18: 1.3 | N18: 1.2 | O18: 1.1 | P18: 0.9 | Q18: 1.2 | R18: 1.2 | S18: 1.2 | T18: 1.2 | U18: 1.5 | V18: 1.7 | W18: 1.5 | X18: 1.6 | Y18: 1.7 | Z18: 1.7 | AA18: 1.8 | AB18: 1.7 | AC18: 1.7 | AD18: 1.8 | AE18: 2 | AF18: 2.2 | AG18: 2.4 | AH18: 2.4 | AI18: 2.4 | AJ18: 2.4 | AK18: 2.9 | AL18: 3.2 | AM18: 2.9 | AN18: 2.7 | AO18: 2.8 | AP18: 3.1 | AQ18: 3.4 | AR18: 3.4
A19: Still in care | B19: 87.5 | C19: 80.2 | D19: 79.2 | E19: 61.2 | F19: 61.4 | G19: 43.7 | H19: 42.5 | I19: 30.2 | J19: 29.8 | K19: 21.3 | L19: 21 | M19: 14.9 | N19: 15.2 | O19: 14.6 | P19: 14 | Q19: 8.6 | R19: 8 | S19: 7.7 | T19: 7.5 | U19: 5 | V19: 4.8 | W19: 4.9 | X19: 4.6 | Y19: 3.5 | Z19: 4.1 | AA19: 4 | AB19: 3.7 | AC19: 2.6 | AD19: 2.3 | AE19: 2.2 | AF19: 2.2 | AG19: 1.8 | AH19: 1.7 | AI19: 1.8 | AJ19: 1.7 | AK19: 1.3 | AL19: 1.5 | AM19: 1.4 | AN19: 1.6 | AO19: 1.5 | AP19: 1.5 | AQ19: 1.5 | AR19: 1.3
A20: Total | B20: 100 | C20: 100 | D20: 100 | E20: 100 | F20: 100 | G20: 100 | H20: 100 | I20: 100 | J20: 100 | K20: 100 | L20: 100 | M20: 100 | N20: 100 | O20: 100 | P20: 100 | Q20: 100 | R20: 100 | S20: 100 | T20: 100 | U20: 100 | V20: 100 | W20: 100 | X20: 100 | Y20: 100 | Z20: 100 | AA20: 100 | AB20: 100 | AC20: 100 | AD20: 100 | AE20: 100 | AF20: 100 | AG20: 100 | AH20: 100 | AI20: 100 | AJ20: 100 | AK20: 100 | AL20: 100 | AM20: 100 | AN20: 100 | AO20: 100 | AP20: 100 | AQ20: 100 | AR20: 100

Sheet table_perm_overtime
A1: EXTRACT: | B1: ='Slide Descriptions'!A1 -> Q4_14
A2: TITLE | B2: California: Exits to permanency over time, by placement type
A3: NOTES: | B3: Data needs to be reverse-sorted once it is obtained; unique children entering care, no restriction on days in care
A4: SOURCE: | B4: C1.3 - Exit Status at Most Recent Available Follow-up Period (http://cssr.berkeley.edu/ucb_childwelfare/C1M3.aspx)
A5: FILTERS: | B5: See below
B7: 3 months | C7: 3 months | D7: 6 months | E7: 6 months | F7: 12 months | G7: 12 months | H7: 18 months | I7: 18 months | J7: 24 months | K7: 24 months | L7: 30 months | M7: 30 months | N7: 36 months | O7: 36 months | P7: 36 months | Q7: 36 months | R7: 48 months | S7: 48 months | T7: 48 months | U7: 48 months | V7: 60 months | W7: 60 months | X7: 60 months | Y7: 60 months | Z7: 72 months | AA7: 72 months | AB7: 72 months | AC7: 72 months | AD7: 84 months | AE7: 84 months | AF7: 84 months | AG7: 84 months | AH7: 96 months | AI7: 96 months | AJ7: 96 months | AK7: 96 months | AL7: 108 months | AM7: 108 months | AN7: 108 months | AO7: 108 months | AP7: 120 months | AQ7: 120 months | AR7: 120 months | AS7: 120 months
B8: 3m | D8: 6m | F8: 1yr | J8: 2yrs | N8: 3yrs | R8: 4yrs | V8: 5yrs | Z8: 6yrs | AD8: 7yrs | AH8: 8yrs | AL8: 9yrs | AP8: 10yrs
A9: Reunified | C9: =table_perm_raw!B14 -> 12 | D9: =table_perm_raw!C14 -> 18.8 | E9: =table_perm_raw!D14 -> 19.9 | F9: =table_perm_raw!E14 -> 35.5 | G9: =table_perm_raw!F14 -> 35.4 | H9: =table_perm_raw!G14 -> 47.5 | I9: =table_perm_raw!H14 -> 49.1 | J9: =table_perm_raw!I14 -> 53.8 | K9: =table_perm_raw!J14 -> 54.6 | L9: =table_perm_raw!K14 -> 56.5 | M9: =table_perm_raw!L14 -> 56.5 | N9: =table_perm_raw!M14 -> 57.7 | O9: =table_perm_raw!N14 -> 58.6 | P9: =table_perm_raw!O14 -> 61 | Q9: =table_perm_raw!P14 -> 61.3 | R9: =table_perm_raw!Q14 -> 60.4 | S9: =table_perm_raw!R14 -> 60.9 | T9: =table_perm_raw!S14 -> 61.9 | U9: =table_perm_raw!T14 -> 63.2 | V9: =table_perm_raw!U14 -> 64.1 | W9: =table_perm_raw!V14 -> 63.8 | X9: =table_perm_raw!W14 -> 63.5 | Y9: =table_perm_raw!X14 -> 63.1 | Z9: =table_perm_raw!Y14 -> 63.3 | AA9: =table_perm_raw!Z14 -> 63.8 | AB9: =table_perm_raw!AA14 -> 64.6 | AC9: =table_perm_raw!AB14 -> 64.1 | AD9: =table_perm_raw!AC14 -> 63.9 | AE9: =table_perm_raw!AD14 -> 64.3 | AF9: =table_perm_raw!AE14 -> 64.5 | AG9: =table_perm_raw!AF14 -> 63.4 | AH9: =table_perm_raw!AG14 -> 60.8 | AI9: =table_perm_raw!AH14 -> 60.6 | AJ9: =table_perm_raw!AI14 -> 61 | AK9: =table_perm_raw!AJ14 -> 60 | AL9: =table_perm_raw!AK14 -> 58.5 | AM9: =table_perm_raw!AL14 -> 58.2 | AN9: =table_perm_raw!AM14 -> 58.8 | AO9: =table_perm_raw!AN14 -> 57.4 | AP9: =table_perm_raw!AO14 -> 57 | AQ9: =table_perm_raw!AP14 -> 58 | AR9: =table_perm_raw!AQ14 -> 58.6 | AS9: =table_perm_raw!AR14 -> 58.2
A10: Adopted | C10: =table_perm_raw!B15 -> 0 | D10: =table_perm_raw!C15 -> 0 | E10: =table_perm_raw!D15 -> . | F10: =table_perm_raw!E15 -> 1.1 | G10: =table_perm_raw!F15 -> 0.9 | H10: =table_perm_raw!G15 -> 4 | I10: =table_perm_raw!H15 -> 3.9 | J10: =table_perm_raw!I15 -> 8.4 | K10: =table_perm_raw!J15 -> 8.1 | L10: =table_perm_raw!K15 -> 12.9 | M10: =table_perm_raw!L15 -> 12.8 | N10: =table_perm_raw!M15 -> 16.9 | O10: =table_perm_raw!N15 -> 16.3 | P10: =table_perm_raw!O15 -> 14.8 | Q10: =table_perm_raw!P15 -> 15 | R10: =table_perm_raw!Q15 -> 19.6 | S10: =table_perm_raw!R15 -> 19.6 | T10: =table_perm_raw!S15 -> 18.9 | U10: =table_perm_raw!T15 -> 18.1 | V10: =table_perm_raw!U15 -> 19.2 | W10: =table_perm_raw!V15 -> 19.3 | X10: =table_perm_raw!W15 -> 19.5 | Y10: =table_perm_raw!X15 -> 20.1 | Z10: =table_perm_raw!Y15 -> 20.3 | AA10: =table_perm_raw!Z15 -> 19 | AB10: =table_perm_raw!AA15 -> 18 | AC10: =table_perm_raw!AB15 -> 18.8 | AD10: =table_perm_raw!AC15 -> 19.8 | AE10: =table_perm_raw!AD15 -> 19.9 | AF10: =table_perm_raw!AE15 -> 20 | AG10: =table_perm_raw!AF15 -> 21 | AH10: =table_perm_raw!AG15 -> 22.5 | AI10: =table_perm_raw!AH15 -> 23.1 | AJ10: =table_perm_raw!AI15 -> 23.1 | AK10: =table_perm_raw!AJ15 -> 24.3 | AL10: =table_perm_raw!AK15 -> 25.9 | AM10: =table_perm_raw!AL15 -> 25.4 | AN10: =table_perm_raw!AM15 -> 24.2 | AO10: =table_perm_raw!AN15 -> 25 | AP10: =table_perm_raw!AO15 -> 25.6 | AQ10: =table_perm_raw!AP15 -> 24.5 | AR10: =table_perm_raw!AQ15 -> 23.7 | AS10: =table_perm_raw!AR15 -> 23.9
A11: Guardianship | C11: =table_perm_raw!B16 -> 0.1 | D11: =table_perm_raw!C16 -> 0.2 | E11: =table_perm_raw!D16 -> 0.3 | F11: =table_perm_raw!E16 -> 1.1 | G11: =table_perm_raw!F16 -> 1.2 | H11: =table_perm_raw!G16 -> 3.2 | I11: =table_perm_raw!H16 -> 2.9 | J11: =table_perm_raw!I16 -> 5.7 | K11: =table_perm_raw!J16 -> 5.7 | L11: =table_perm_raw!K16 -> 7.1 | M11: =table_perm_raw!L16 -> 7.3 | N11: =table_perm_raw!M16 -> 7.9 | O11: =table_perm_raw!N16 -> 7.2 | P11: =table_perm_raw!O16 -> 6.7 | Q11: =table_perm_raw!P16 -> 7 | R11: =table_perm_raw!Q16 -> 7.7 | S11: =table_perm_raw!R16 -> 7.4 | T11: =table_perm_raw!S16 -> 7.4 | U11: =table_perm_raw!T16 -> 6.7 | V11: =table_perm_raw!U16 -> 6.5 | W11: =table_perm_raw!V16 -> 6.8 | X11: =table_perm_raw!W16 -> 6.6 | Y11: =table_perm_raw!X16 -> 6 | Z11: =table_perm_raw!Y16 -> 6.5 | AA11: =table_perm_raw!Z16 -> 6.8 | AB11: =table_perm_raw!AA16 -> 6.6 | AC11: =table_perm_raw!AB16 -> 6.7 | AD11: =table_perm_raw!AC16 -> 6.9 | AE11: =table_perm_raw!AD16 -> 6.8 | AF11: =table_perm_raw!AE16 -> 6.6 | AG11: =table_perm_raw!AF16 -> 6.4 | AH11: =table_perm_raw!AG16 -> 7.2 | AI11: =table_perm_raw!AH16 -> 7.1 | AJ11: =table_perm_raw!AI16 -> 6.5 | AK11: =table_perm_raw!AJ16 -> 6.2 | AL11: =table_perm_raw!AK16 -> 6.1 | AM11: =table_perm_raw!AL16 -> 6.5 | AN11: =table_perm_raw!AM16 -> 6.9 | AO11: =table_perm_raw!AN16 -> 7.6 | AP11: =table_perm_raw!AO16 -> 7.4 | AQ11: =table_perm_raw!AP16 -> 6.9 | AR11: =table_perm_raw!AQ16 -> 6.9 | AS11: =table_perm_raw!AR16 -> 6.6
A14: FILTERS:
A15: Report Type | B15: Exit Status at Most Recent Available Follow Up Period:
A16: Days in Care | B16: 8 days
A17: Episode Count | B17: First Entry
A18: Interval | B18: All

Sheet table_C3.1
A1: EXTRACT: | R1: ='Slide Descriptions'!A1 -> Q4_14
A2: TITLE | R2: California: C3.1: Exits to Permanency (24m in Care), by exit type
A3: NOTES: | R3: Total comes from count, not percent; %Exits to Permanency will not come up on table, that row has the formula in it necessary for the calculation
A4: URL: | R4: Multiple Time Periods (California or Individual County)
A5: SOURCE: | R5: C3.1 (http://cssr.berkeley.edu/ucb_childwelfare/C3M1.aspx)
A6: FILTERS: | R6: See below
B8: 1998 | F8: 1999 | J8: 2000 | N8: 2001 | R8: 2004 | V8: 2005 | Z8: 2006 | AD8: 2007 | AH8: 2008 | AL8: 2009 | AP8: 2010 | AT8: 2011 | AX8: 2012 | BB8: 2013 | BF8: 2014
A9: % Reunified | B9: 3.3 | C9: 3.8 | D9: 4.2 | E9: 4.5 | F9: 4.9 | G9: 5.6 | H9: 7.1 | I9: 7.8 | J9: 8.3 | K9: 8.4 | L9: 7.3 | M9: 6.3 | N9: 5.6 | O9: 5.2 | P9: 5.1 | Q9: 5.1 | R9: 4.8 | S9: 4.6 | T9: 4.5 | U9: 4.3 | V9: 4.5 | W9: 4.4 | X9: 4.1 | Y9: 4 | Z9: 3.8 | AA9: 3.8 | AB9: 3.9 | AC9: 3.8 | AD9: 3.7 | AE9: 3.5 | AF9: 3.5 | AG9: 3.6 | AH9: 3.8 | AI9: 3.6 | AJ9: 3.6 | AK9: 3.4 | AL9: 3.7 | AM9: 3.9 | AN9: 4 | AO9: 3.9 | AP9: 3.8 | AQ9: 4 | AR9: 4 | AS9: 4.1 | AT9: 4.1 | AU9: 3.8 | AV9: 3.7 | AW9: 3.4 | AX9: 3.4 | AY9: 3.5 | AZ9: 3.5 | BA9: 3.1 | BB9: 3.2 | BC9: 3.2 | BD9: 3.3 | BE9: 3.2 | BF9: 3.1
A10: % Guardianship | B10: 1.2 | C10: 1.2 | D10: 1.2 | E10: 1.1 | F10: 1.1 | G10: 2.9 | H10: 4.7 | I10: 5.9 | J10: 7 | K10: 5.9 | L10: 4.9 | M10: 4.5 | N10: 4.4 | O10: 4.4 | P10: 4.3 | Q10: 4.3 | R10: 4.9 | S10: 4.2 | T10: 3.9 | U10: 3.4 | V10: 3.2 | W10: 3.1 | X10: 3.2 | Y10: 3.1 | Z10: 3 | AA10: 2.8 | AB10: 2.9 | AC10: 3 | AD10: 3.5 | AE10: 4 | AF10: 4.5 | AG10: 4.7 | AH10: 4.6 | AI10: 4.5 | AJ10: 4.5 | AK10: 4.1 | AL10: 3.9 | AM10: 3.7 | AN10: 4 | AO10: 4.1 | AP10: 4.3 | AQ10: 4.2 | AR10: 4.3 | AS10: 4.2 | AT10: 4.1 | AU10: 4.4 | AV10: 4.4 | AW10: 4.7 | AX10: 4.8 | AY10: 4.7 | AZ10: 5 | BA10: 5.1 | BB10: 5.2 | BC10: 4.8 | BD10: 4.6 | BE10: 4.5 | BF10: 4.5
A11: % Exits to Permanency | B11: 9.1 | C11: 9.9 | D11: 10.7 | E11: 11.4 | F11: 12.9 | G11: 16 | H11: 20 | I11: 22.8 | J11: 24.3 | K11: 23.9 | L11: 22.2 | M11: 21.2 | N11: 21.2 | O11: 21 | P11: 21.1 | Q11: 20.9 | R11: =SUM(R9:R10)+R12 -> 20.5 | S11: 20.2 | T11: 20.1 | U11: 19.6 | V11: 19.9 | W11: 19.8 | X11: 19.3 | Y11: 19.4 | Z11: 18.7 | AA11: 19 | AB11: 19.5 | AC11: 20.2 | AD11: 21.1 | AE11: 21.9 | AF11: 23 | AG11: 23.9 | AH11: 23.5 | AI11: 23.9 | AJ11: 24.1 | AK11: 24.6 | AL11: 25.1 | AM11: =SUM(AM9:AM10)+AM12 -> 25.9 | AN11: 26 | AO11: 24.9 | AP11: 23.8 | AQ11: 23.7 | AR11: 23.3 | AS11: 23.7 | AT11: =SUM(AT9:AT10)+AT12 -> 24.1 | AU11: 24.9 | AV11: 25.5 | AW11: 25.6 | AX11: 24.6 | AY11: 25.2 | AZ11: =SUM(AZ9:AZ10)+AZ12 -> 25.3 | BA11: 25.5 | BB11: 24.7 | BC11: 24.9 | BD11: 24.7 | BE11: 25.4 | BF11: 25.3
A12: % Adopted | B12: 4.6 | C12: 4.9 | D12: 5.3 | E12: 5.8 | F12: 6.9 | G12: 7.5 | H12: 8.2 | I12: 9 | J12: 9 | K12: 9.6 | L12: 10.1 | M12: 10.4 | N12: 11.2 | O12: 11.5 | P12: 11.7 | Q12: 11.5 | R12: 10.8 | S12: 11.4 | T12: 11.7 | U12: 11.9 | V12: 12.2 | W12: 12.3 | X12: 12 | Y12: 12.3 | Z12: 11.9 | AA12: 12.4 | AB12: 12.7 | AC12: 13.4 | AD12: 13.9 | AE12: 14.4 | AF12: 15 | AG12: 15.6 | AH12: 15.1 | AI12: 15.8 | AJ12: 16 | AK12: 17.1 | AL12: 17.5 | AM12: 18.3 | AN12: 18 | AO12: 16.9 | AP12: 15.7 | AQ12: 15.5 | AR12: 15 | AS12: 15.4 | AT12: 15.9 | AU12: 16.7 | AV12: 17.4 | AW12: 17.5 | AX12: 16.4 | AY12: 17 | AZ12: 16.8 | BA12: 17.3 | BB12: 16.3 | BC12: 16.9 | BD12: 16.8 | BE12: 17.7 | BF12: 17.7
A13: Total | B13: 43777 | C13: 45433 | D13: 46785 | E13: 48494 | F13: 49960 | G13: 52140 | H13: 53783 | I13: 55169 | J13: 55378 | K13: 55100 | L13: 52911 | M13: 51037 | N13: 49152 | O13: 48350 | P13: 47471 | Q13: 46193 | R13: 36518 | S13: 35868 | T13: 34852 | U13: 33832 | V13: 32890 | W13: 32416 | X13: 31643 | Y13: 30894 | Z13: 29643 | AA13: 29521 | AB13: 29179 | AC13: 28504 | AD13: 27675 | AE13: 27590 | AF13: 27253 | AG13: 26601 | AH13: 25514 | AI13: 25230 | AJ13: 24497 | AK13: 23674 | AL13: 22902 | AM13: 22434 | AN13: 21821 | AO13: 20674 | AP13: 19520 | AQ13: 18905 | AR13: 18389 | AS13: 17942 | AT13: 17086 | AU13: 16809 | AV13: 16334 | AW13: 15865 | AX13: 15110 | AY13: 15005 | AZ13: 14699 | BA13: 14480 | BB13: 13995 | BC13: 14024 | BD13: 13912 | BE13: 13869 | BF13: 13586
A15: FILTERS:
A16: Time in Care | R16: 24 Months or Longer
A17: Table Output in: | R17: Percent (Also need "Count" for Total)
A18: Interval: | R18: All
A19: Subgroups: | R19: No Restrictions

Sheet table_c3.3
A1: EXTRACT: | B1: ='Slide Descriptions'!A1 -> Q4_14
A2: TITLE | B2: California: C3.3: In Care 3 Years or Longer (Emancipated or Age 18)
A3: NOTES: | B3: In order to get # Emancipating, change % to count.; National goal is not from any chart but remains the same each quarter
A4: OUTPUT TYPE: | B4: Multiple Time Periods (California or Individual County)
A5: SOURCE: | B5: C3.3 (http://cssr.berkeley.edu/ucb_childwelfare/C3M3.aspx)
A6: FILTERS: | B6: Table Output in: Percent; Interval: All; Subgroups: No Restrictions
B8: 2004 | F8: 2005 | J8: 2006 | N8: 2007 | R8: 2008 | V8: 2009 | Z8: 2010 | AD8: 2011 | AH8: 2012 | AL8: 2013 | AP8: 2014
A9: % in Care 3+ Years | B9: 65.5 | C9: 65.6 | D9: 66.3 | E9: 66.1 | F9: 65.7 | G9: 66 | H9: 65 | I9: 64.4 | J9: 64.1 | K9: 63.6 | L9: 63.7 | M9: 63.7 | N9: 62.8 | O9: 61.9 | P9: 61 | Q9: 60.5 | R9: 60.8 | S9: 61 | T9: 60.5 | U9: 60.2 | V9: 59.9 | W9: 59.4 | X9: 60.2 | Y9: 59.5 | Z9: 58.9 | AA9: 59.6 | AB9: 59.1 | AC9: 59.5 | AD9: 58.9 | AE9: 57.7 | AF9: 56.2 | AG9: 54.9 | AH9: 54.9 | AI9: 54.4 | AJ9: 53.9 | AK9: 52.9 | AL9: 51.4 | AM9: 50.5 | AN9: 49.5 | AO9: 49.3 | AP9: 48.6
A10: National Goal (37.5%) | B10: 37.5 | C10: 37.5 | D10: 37.5 | E10: 37.5 | F10: 37.5 | G10: 37.5 | H10: 37.5 | I10: 37.5 | J10: 37.5 | K10: 37.5 | L10: 37.5 | M10: 37.5 | N10: 37.5 | O10: 37.5 | P10: 37.5 | Q10: 37.5 | R10: 37.5 | S10: 37.5 | T10: 37.5 | U10: 37.5 | V10: 37.5 | W10: 37.5 | X10: 37.5 | Y10: 37.5 | Z10: 37.5 | AA10: 37.5 | AB10: 37.5 | AC10: 37.5 | AD10: 37.5 | AE10: 37.5 | AF10: 37.5 | AG10: 37.5 | AH10: 37.5 | AI10: 37.5 | AJ10: 37.5 | AK10: 37.5 | AL10: 37.5 | AM10: 37.5 | AN10: 37.5 | AO10: 37.5 | AP10: 37.5
A11: # Emancipating or Age 18 in Care | B11: 4466 | C11: 4418 | D11: 4380 | E11: 4422 | F11: 4417 | G11: 4435 | H11: 4470 | I11: 4536 | J11: 4584 | K11: 4629 | L11: 4702 | M11: 4694 | N11: 4712 | O11: 4690 | P11: 4615 | Q11: 4623 | R11: 4575 | S11: 4564 | T11: 4549 | U11: 4486 | V11: 4449 | W11: 4429 | X11: 4365 | Y11: 4227 | Z11: 4163 | AA11: 4060 | AB11: 3956 | AC11: 3912 | AD11: 3815 | AE11: 3761 | AF11: 3764 | AG11: 3683 | AH11: 3683 | AI11: 3666 | AJ11: 3595 | AK11: 3548 | AL11: 3468 | AM11: 3431 | AN11: 3423 | AO11: 3427 | AP11: 3421

Sheet table_C4.1.2.3
A1: EXTRACT: | B1: ='Slide Descriptions'!A1 -> Q4_14
A2: TITLE | B2: California: C4.1,2,3: Placement Stability, Percent of Children with 2 or Fewer Placements
A3: NOTES: | B3: Have to create 3 separate tables; one for 8d to 12m, onefor 12m to 24m, and one for 24m+
A4: OUTPUT TYPE: | B4: Multiple Time Periods (California or Individual County)
A5: FILTERS: | B5: Table Output in: Percent; Interval: All; No restrictions on subgroups
A6: SOURCE: | B6: C4.1.2.3 measures (http://cssr.berkeley.edu/ucb_childwelfare/C4M123.aspx)
A7: FILTERS: | B7: Table Output in: Percent; Interval: All; Subgroups: No Restrictions
B9: 2004 | F9: 2005 | J9: 2006 | N9: 2007 | R9: 2008 | V9: 2009 | Z9: 2010 | AD9: 2011 | AH9: 2012 | AL9: 2013 | AP9: 2014
A10: 8d to 12m | B10: 81.1 | C10: 81.9 | D10: 82.2 | E10: 82 | F10: 81.6 | G10: 81.6 | H10: 81.6 | I10: 81.6 | J10: 81.9 | K10: 82.7 | L10: 82.8 | M10: 82.1 | N10: 82 | O10: 82.5 | P10: 83 | Q10: 82.7 | R10: 82.7 | S10: 83.5 | T10: 83.6 | U10: 84 | V10: 84 | W10: 83.9 | X10: 83.9 | Y10: 84.2 | Z10: 84.6 | AA10: 84.9 | AB10: 84.7 | AC10: 84.9 | AD10: 84.8 | AE10: 85.5 | AF10: 85.6 | AG10: 85.6 | AH10: 86.1 | AI10: 86.6 | AJ10: 86.8 | AK10: 86.7 | AL10: 86.8 | AM10: 86.8 | AN10: 87 | AO10: 86.6 | AP10: 86.6
A11: 12m to 24m | B11: 59.1 | C11: 59.5 | D11: 59.6 | E11: 59.8 | F11: 59.8 | G11: 60.7 | H11: 60.7 | I11: 61.2 | J11: 61 | K11: 60.7 | L11: 61.1 | M11: 61.6 | N11: 61.9 | O11: 62.4 | P11: 63 | Q11: 63.1 | R11: 62.9 | S11: 63.1 | T11: 63 | U11: 62.7 | V11: 62.8 | W11: 63.4 | X11: 63.5 | Y11: 63.9 | Z11: 63.9 | AA11: 64.5 | AB11: 65.3 | AC11: 65.5 | AD11: 65.7 | AE11: 66.1 | AF11: 66.3 | AG11: 66.6 | AH11: 67 | AI11: 67.3 | AJ11: 67.9 | AK11: 68.3 | AL11: 69 | AM11: 69.5 | AN11: 69.8 | AO11: 69.6 | AP11: 69.7
A12: 24m+ | B12: 36.1 | C12: 35.6 | D12: 35.1 | E12: 34.7 | F12: 34.2 | G12: 34 | H12: 33.7 | I12: 33.4 | J12: 33.4 | K12: 33.8 | L12: 33.9 | M12: 34 | N12: 34 | O12: 34 | P12: 33.9 | Q12: 34.1 | R12: 33.9 | S12: 33.9 | T12: 33.9 | U12: 33.6 | V12: 33.4 | W12: 33.4 | X12: 33.1 | Y12: 33.1 | Z12: 32.9 | AA12: 33.4 | AB12: 33.4 | AC12: 33.9 | AD12: 33.9 | AE12: 34.4 | AF12: 34.9 | AG12: 35.4 | AH12: 35.8 | AI12: 36.5 | AJ12: 37 | AK12: 37.5 | AL12: 37.6 | AM12: 38.4 | AN12: 39.2 | AO12: 39.8 | AP12: 40.7

Sheet table_C1.4 reentry
A1: EXTRACT: | B1: ='Slide Descriptions'!A1 -> Q4_14
A2: TITLE | B2: California: C1.4: Reentering Care After Exit to Reunification at 12 and 24 Months
A3: NOTES: | B3: Have to create 2 separate tables; one for24m, one for 24m
A4: OUTPUT TYPE: | B4: Multiple Time Periods (California or Individual County)
A5: FILTERS: | B5: Table Output in: Percent; Interval: All; Episode Count: All; Days in Care: 8 days or more;
A6: SOURCE: | B6: C1.4: http://cssr-test.berkeley.edu/ucb_childwelfare/C1M4.aspx
B8: 2003 | F8: 2004 | J8: 2005 | N8: 2006 | R8: 2007 | V8: 2008 | Z8: 2009 | AD8: 2010 | AH8: 2011 | AL8: 2012 | AP8: 2013
A9: Reentered in less than 12 months | B9: 11.2 | C9: 11.1 | D9: 11 | E9: 11.3 | F9: 11.5 | G9: 12 | H9: 12 | I9: 12.2 | J9: 12.4 | K9: 12.4 | L9: 12.6 | M9: 12.6 | N9: 12.2 | O9: 12 | P9: 12 | Q9: 11.8 | R9: 11.8 | S9: 11.5 | T9: 11.4 | U9: 11.6 | V9: 11.8 | W9: 11.8 | X9: 11.7 | Y9: 11.6 | Z9: 11.7 | AA9: 11.8 | AB9: 11.8 | AC9: 11.9 | AD9: 11.8 | AE9: 11.6 | AF9: 11.9 | AG9: 12 | AH9: 12.2 | AI9: 12.3 | AJ9: 12.2 | AK9: 11.8 | AL9: 11.8 | AM9: 11.5 | AN9: 11.6 | AO9: 11.9 | AP9: 11.7
A10: Reentered in less than 24 months | B10: 16.2 | C10: 16.2 | D10: 16.2 | E10: 16.4 | F10: 16.8 | G10: 17.1 | H10: 17.1 | I10: 17.3 | J10: 17.8 | K10: 17.7 | L10: 17.7 | M10: 17.7 | N10: 17 | O10: 16.7 | P10: 16.8 | Q10: 16.7 | R10: 16.5 | S10: 16.2 | T10: 15.9 | U10: 16 | V10: 16.4 | W10: 16.5 | X10: 16.3 | Y10: 16 | Z10: 15.9 | AA10: 15.9 | AB10: 16.1 | AC10: 16.2 | AD10: 16.5 | AE10: 16.5 | AF10: 16.9 | AG10: 17.2 | AH10: 17.4 | AI10: 17.8 | AJ10: 17.4 | AK10: 17.1 | AL10: 17.1 | AM10: 0 | AN10: 0 | AO10: 0 | AP10: 0

Sheet table_636 measures
A1: EXTRACT: | B1: ='Slide Descriptions'!A1 -> Q4_14
A2: TITLE: | B2: California CWS Outcomes System: AB 636 Measures, % IMPROVEMENT/DECLINE
A3: NOTES: | B3: If % change has the same sign (+ or -) as the directional goal, it is entered as a positive number; if the signs are different, it is entered as a negative number.
A4: SOURCE: | B4: CWS Outcomes (http://cssr.berkeley.edu/ucb_childwelfare/Ccfsr.aspx)
A5: FILTERS: | B5: N/A.
A7: 4B: PIT Placement (Group/Shelter) (-) | B7: 0.068
A8: 4B: PIT Placement (Relative) (+) | B8: 0.096
A9: 4B: Entries First Placement (Group/Shelter) (-) | B9: 0.022
A10: 4B: Entries First Placement (Relative) (+) | B10: 0.401
A13: 4A: Siblings (Some or All) (+) | B13: -0.03
A14: 4A: Siblings (All) (+) | B14: -0.06
A17: 2F: Timely Social Worker Visits in Residence (+) | B17: 0.129
A18: 2F: Timely Social Worker Visits (+) | B18: 0.084
A21: 2B: Timely Response (10 day) (+) | B21: -0.042
A22: 2B: Timely Response (1 day) (+) | B22: -0.012
A25: PR: In Care Rate (-) | B25: 0.055
A26: PR: Entry Rate (-) | B26: -0.023
A27: PR: Substantiation Rate (-) | B27: 0.125
A28: PR: Referral Rate (-) | B28: -0.078

Sheet table_fedmeas
A1: EXTRACT: | B1: ='Slide Descriptions'!A1 -> Q4_14
A2: TITLE: | B2: California CWS Outcomes System: Federal Measures, 5-Year % IMPROVEMENT/DECLINE
A3: NOTES: | B3: If % change has the same sign (+ or -) as the directional goal, it is entered as a positive number; if the signs are different, it is entered as a negative number;
B4: If % improvement is above 100%, it will need to be cut off in the table and the value label changed manually (like the adoption composite in the CA workbook)
A5: SOURCE: | B5: CWS Outcomes (http://cssr.berkeley.edu/ucb_childwelfare/Ccfsr.aspx)
A6: FILTERS: | B6: N/A.
A8: C4.3: Placement Stability (24m+ In Care) (+) | B8: 0.218
A9: C4.2: Placement Stability (12-24m In Care) (+) | B9: 0.109
A10: C4.1: Placement Stability (8d-12m In Care) (+) | B10: 0.031
A11: C3.3: In Care 3+ Yrs (Emancipated/Age 18) (-) | B11: 0.188
A12: C3.2: Exits to Permanency (Legally Free) (+) | B12: 0.009
A13: C3.1: Exits to Permanency (24m In Care) (+) | B13: 0.01
A14: C2.5: Adoption w/in 12m (Legally Free) (+) | B14: 0.059
A15: C2.4: Legally Free w/in 6m (17m In Care) (+) | B15: 0.217
A16: C2.3: Adoption w/in 12m (17m In Care) (+) | B16: 0.017
A17: C2.2: Median Time to Adoption (-) | B17: 0.128
A18: C2.1: Adoption w/in 24m (+) | B18: 0.356
A19: C1.4: Reentry Following Reunification (-) | B19: -0.016
A20: C1.3: Reunification w/in 12m (Entry Cohort) (+) | B20: -0.159
A21: C1.2: Median Time to Reunification (-) | B21: -0.086
A22: C1.1: Reunification w/in 12m (Exit Cohort) (+) | B22: -0.007
A23: S2.1: No Maltreatment in Foster Care (+) | B23: 0.0013
A24: S1.1: No Recurrence of Maltreatment (+) | B24: 0.003

Sheet table_relative_performance
A1: EXTRACT: | B1: ='Slide Descriptions'!A1 -> Q4_14
A2: TITLE: | B2: TITLE: California CWS Outcomes System: Performance Relative to Federal Standard/Goal
A3: NOTES: | B3: "Difference to Goal" Column has formula for calculation; no need to manually calculate
B4: If Current Relative Performance is above 100, only use 100.
A5: SOURCE: | B5: CWS Outcomes (http://cssr.berkeley.edu/ucb_childwelfare/Ccfsr.aspx)
A6: FILTERS: | B6: N/A.
B8: Current Relative Performance | C8: Difference to Goal
A9: C4.3: Placement Stability (24m+ In Care) | B9: 97.3 | C9: =100-B9 -> 2.7
A10: C4.2: Placement Stability (12-24m In Care) | B10: 100 | C10: =100-B10 -> 0
A11: C4.1: Placement Stability (8d-12m In Care) | B11: 100 | C11: =100-B11 -> 0
A13: C3.3: In Care 3+ Yrs (Emancipated/Age 18) | B13: 77.1 | C13: =100-B13 -> 22.9
A14: C3.2: Exits to Permanency (Legally Free) | B14: 99.9 | C14: =100-B14 -> 0.1
A15: C3.1: Exits to Permanency (24m In Care) | B15: 87.2 | C15: =100-B15 -> 12.8
A17: C2.5: Adoption w/in 12m (Legally Free) | B17: 100 | C17: =100-B17 -> 0
A18: C2.4: Legally Free w/in 6m (17m In Care) | B18: 88.4 | C18: =100-B18 -> 11.6
A19: C2.3: Adoption w/in 12m (17m In Care) | B19: 96.1 | C19: =100-B19 -> 3.9
A20: C2.2: Median Time to Adoption | B20: 100 | C20: =100-B20 -> 0
A21: C2.1: Adoption w/in 24m | B21: 100 | C21: =100-B21 -> 0
A23: C1.4: Reentry Following Reunification | B23: 82.3 | C23: =100-B23 -> 17.7
A24: C1.3: Reunification w/in 12m (Entry Cohort) | B24: 73.4 | C24: =100-B24 -> 26.6
A25: C1.2: Median Time to Reunification | B25: 61.4 | C25: =100-B25 -> 38.6
A26: C1.1: Reunification w/in 12m (Exit Cohort) | B26: 84.6 | C26: =100-B26 -> 15.4
A28: S2.1: No Maltreatment in Foster Care | B28: 100 | C28: =100-B28 -> 0
A29: S1.1: No Recurrence of Maltreatment | B29: 98.7 | C29: =100-B29 -> 1.3
